Workbook

Sheet UEM
A1: MINISTÉRIO DA INTEGRAÇÃO E DO DESENVOLVIMENTO REGIONAL | J1: BDI serviç | K1: 1.2591
A2: COMPANHIA DE DESENVOLVIMENTO DOS VALES DO SÃO FRANCISCO E DO PARNAÍBA | J2: BDI fornec. | K2: 1.136
A3: SEDE
A4: PLANILHA ORÇAMENTÁRIA DE ESTIMATIVA GERAL PARA O ESTADO DE MINAS GERAIS (16ª SR) | H4: Base SINAPI-MG 03-2025 ORSE 02-2025
H5: Data: Maio - 2025
A7: Item | B7: Base | C7: Código | D7: Descrição | E7: Unid. | F7: Quant. | G7: Valor (R$)
G8: Unit. (sem BDI) | H8: Unit. (com BDI) | I8: Total
A10: 13 | D10: UNIDADE DE EXTRAÇÃO DE MEL | I10: =SUM(I11,I14,I20,I27,I33,I35,I39,I42,I47,I53) -> 254688.8
A11: 13.1 | D11: SERVIÇOS PRELIMINARES | I11: =SUM(I12:I13) -> 4032.66
A12: 13.2 | B12: Sinapi | C12: 105009 | D12: =[1]CPU!$A$91 -> LOCAÇÃO DE OBRAS | E12: m | F12: =(7.89*2+9.6*2) -> 34.98 | G12: =J12 -> 90.03 | H12: =G12*K$1 -> 113.356773 | I12: =ROUND(F12*H12,2) -> 3965.22 | J12: 90.03
A13: 13.3 | B13: Sinapi | C13: 98525 | D13: LIMPEZA MECANIZADA DE CAMADA VEGETAL, VEGETAÇÃO E PEQUENAS ÁRVORES (DIÂMETRO DE TRONCO MENOR QUE 0,20 M), COM TRATOR DE ESTEIRAS. | E13: m² | F13: =9.56*7.891 -> 75.43796 | G13: =J13 -> 0.71 | H13: =G13*K$1 -> 0.893961 | I13: =ROUND(F13*H13,2) -> 67.44 | J13: 0.71
A14: 13.4 | D14: MOVIMENTO DE TERRA | I14: =SUM(I15:I19) -> 2102.94
A15: 13.5 | B15: Sinapi | C15: 101230 | D15: ESCAVAÇÃO VERTICAL A CÉU ABERTO, EM OBRAS DE INFRAESTRUTURA, INCLUINDO CARGA, DESCARGA E TRANSPORTE, EM SOLO DE 1ª CATEGORIA COM ESCAVADEIRA HIDRÁULICA (CAÇAMBA: 0,8 M³ / 111 HP) | E15: m³ | F15: =45.5+1.92+4.32+3 -> 54.74 | G15: =J15 -> 11.62 | H15: =G15*K$1 -> 14.630742 | I15: =ROUND(F15*H15,2) -> 800.89 | J15: 11.62
A16: 13.6 | B16: Sinapi | C16: 100577 | D16: REGULARIZAÇÃO E COMPACTAÇÃO DE SUBLEITO DE SOLO PREDOMINANTEMENTE ARENOSO. | E16: m² | F16: =9.6*7.9*0.6 -> 45.504 | G16: 0.5 | H16: =G16*K$1 -> 0.62955 | I16: =ROUND(F16*H16,2) -> 28.65 | J16: 0.5
A17: 13.7 | B17: Sinapi | C17: 96385 | D17: EXECUÇÃO E COMPACTAÇÃO DE ATERRO COM SOLO PREDOMINANTEMENTE ARGILOSO - EXCLUSIVE SOLO, ESCAVAÇÃO, CARGA E TRANSPORTE | E17: m³ | F17: 64.4 | G17: 12.48 | H17: 15.713568 | I17: =ROUND(F17*H17,2) -> 1011.95 | J17: 12.48
A18: 13.8 | B18: Sinapi | C18: 100574 | D18: ESPALHAMENTO DE MATERIAL COM TRATOR DE ESTEIRAS. | E18: m³ | F18: 19.05 | G18: 1.48 | H18: 1.863468 | I18: =ROUND(F18*H18,2) -> 35.5 | J18: 1.48
A19: 13.9 | B19: Sinapi | C19: 100973 | D19: CARGA, MANOBRA E DESCARGA DE SOLOS E MATERIAIS GRANULARES EM CAMINHÃO BASCULANTE 6 M³ - CARGA COM PÁ CARREGADEIRA (CAÇAMBA DE 1,7 A 2,8 M³ /128 HP) E DESCARGA LIVRE | E19: m³ | F19: 19.05 | G19: 9.42 | H19: 11.860722 | I19: =ROUND(F19*H19,2) -> 225.95 | J19: 9.42
A20: 13.10 | D20: FUNDAÇÕES/ ESTRUTURAS DE CONCRETO ARMADO | I20: =SUM(I21:I24) -> 5613.74
A21: 13.11 | B21: Sinapi | C21: 92802 | D21: CORTE E DOBRA DE AÇO CA-50, DIÂMETRO DE 8,0 MM | E21: kg | F21: 101.6 | G21: =J21 -> 9.6 | H21: 12.08736 | I21: =ROUND(F21*H21,2) -> 1228.08 | J21: 9.6
A22: 13.12 | B22: Sinapi | C22: 94965 | D22: CONCRETO FCK = 25MPA, TRAÇO 1:2,3:2,7 (CIMENTO/ AREIA MÉDIA/ BRITA 1) - PREPARO MECÂNICO COM BETONEIRA 400 L. | E22: m³ | F22: =2.16+1.8 -> 3.96 | G22: 540.54 | H22: 680.593914 | I22: =ROUND(F22*H22,2) -> 2695.15 | J22: 540.54
A23: 13.13 | B23: Sinapi | C23: 103673 | D23: LANÇAMENTO COM USO DE BOMBA, ADENSAMENTO E ACABAMENTO DE CONCRETO EM ESTRUTURAS. AF_02/2022 | E23: m³ | F23: 3.96 | G23: 44.5 | H23: 56.02995 | I23: =ROUND(F23*H23,2) -> 221.88 | J23: 44.5
A24: 13.14 | B24: Sinapi | C24: 97086 | D24: FABRICAÇÃO, MONTAGEM E DESMONTAGEM DE FORMA PARA RADIER, EM MADEIRA SERRADA, 4 UTILIZAÇÕES. | E24: m² | F24: 7.8 | G24: 149.54 | H24: 188.285814 | I24: =ROUND(F24*H24,2) -> 1468.63 | J24: 149.54
A25: 13.15 | D25: REVESTIMENTOS | I25: =SUM(I26:I26) -> 0
A26: 13.16 | B26: Sinapi | C26: 98555 | D26: IMPERMEABILIZAÇÃO DE SUPERFÍCIE COM ARGAMASSA POLIMÉRICA / MEMBRANA ACRÍLICA, 3 DEMÃOS. | E26: m² | F26: 0 | G26: =(J26) -> 0 | H26: =(J26*K$1) -> 0 | I26: =ROUND(F26*H26,2) -> 0
A27: 13.17 | D27: ALVENARIAS, DIVISÓRIAS E FECHAMENTOS | I27: =SUM(I28:I32) -> 27778.15
A28: 13.18 | B28: CPU | C28: CPU010 | D28: REVESTIMENTO DE PAREDES EM CHAPAS DE AÇO INOXIDÁVEL AISI 304 - APENAS INSTALAÇÃO | E28: M² | F28: 70.54 | G28: =J28 -> 46.864 | H28: =G28*K$1 -> 59.0064624 | I28: =ROUND(F28*H28,2) -> 4162.32 | J28: =CPU!I206 -> 46.864
A29: 13.19 | B29: ORSE | C29: 10280/ORSE | D29: MANTA EM LÃ DE VIDRO | E29: M² | F29: 66.278 | G29: 15.05 | H29: 18.949455 | I29: =ROUND(F29*H29,2) -> 1255.93 | J29: 15.05
A30: 13.20 | B30: CPU | C30: CPU009 | D30: CHAPA XADREZ EM ALUMINIO PARA PISO e:3mm, INCLUSO REBITE PARA FIXAÇÃO - APENAS MÃO DE OBRA | E30: M² | F30: 29.9 | G30: 423.7691 | H30: 533.5676738 | I30: =ROUND(F30*H30,2) -> 15953.67 | J30: =CPU!I193 -> 423.7691
A31: 13.21 | B31: Sinapi | C31: 96486 | D31: FORRO EM RÉGUAS DE PVC, LISO, PARA AMBIENTES COMERCIAIS, INCLUSIVE ESTRUTURA BIDIRECIONAL DE FIXAÇÃO | E31: m² | F31: 29.93 | G31: 72.75 | H31: 91.599525 | I31: =ROUND(F31*H31,2) -> 2741.57 | J31: 72.75
A32: 13.22 | B32: Sinapi | C32: 104723 | D32: PAREDE COM SISTEMA EM CHAPAS DE GESSO PARA DRYWALL, USO INTERNO, COM DUAS FACES DUPLAS E ESTRUTURA METÁLICA COM GUIAS DUPLAS PARA PAREDES COM ÁREA LÍQUIDA MENOR QUE 6 M2, COM VÃOS. | E32: m² | F32: 12.096 | G32: 240.62 | H32: 302.964642 | I32: =ROUND(F32*H32,2) -> 3664.66 | J32: 240.62
A33: 13.23 | D33: PINTURAS | I33: =SUM(I34:I34) -> 10952.82
A34: 13.24 | B34: Sinapi | C34: 100751 | D34: PINTURA COM TINTA EPOXÍDICA DE ACABAMENTO PULVERIZADA SOBRE PERFIL METÁLICO EXECUTADO EM FÁBRICA (02 DEMÃOS). | E34: m² | F34: 170.3 | G34: =J34 -> 51.08 | H34: 64.314828 | I34: =ROUND(F34*H34,2) -> 10952.82 | J34: 51.08
A35: 13.25 | D35: COBERTURAS | I35: =SUM(I36:I38) -> 34488.86
A36: 13.26 | B36: ORSE | C36: 13874/ORSE | D36: ESTRUTURA METALICA P/ COBERTURA DE CRECHE PADRÃO 1 DO PADRÃO FNDE, EM LIGTH STEEL FRAME, COM PERFIS UE70 MONTANTES DE TUBO UE70, INCLUSIVE FORNECIMENTO E MONTAGEM. EXCLUSIVE TELHAS | E36: m² | F36: 96 | G36: =J36 -> 113.51 | H36: =(G36*K$1) -> 142.920441 | I36: =ROUND(F36*H36,2) -> 13720.36 | J36: 113.51
A37: 13.27 | B37: Sinapi | C37: 94216 | D37: TELHAMENTO COM TELHA METÁLICA TERMOACÚSTICA E = 30 MM, COM ATÉ 2 ÁGUAS, INCLUSO IÇAMENTO | E37: M2 | F37: 96 | G37: =J37 -> 153.34 | H37: 193.070394 | I37: =ROUND(F37*H37,2) -> 18534.76 | J37: 153.34
A38: 13.28 | B38: Sinapi | C38: 94228 | D38: CALHA EM CHAPA DE AÇO GALVANIZADO NÚMERO 24, DESENVOLVIMENTO DE 50 CM, INCLUSO TRANSPORTE VERTICAL. AF_07/2019 | E38: m | F38: =16*1.1 -> 17.6 | G38: 100.8 | H38: 126.91728 | I38: =ROUND(F38*H38,2) -> 2233.74 | J38: 100.8
A39: 13.29 | D39: CONSTRUÇÃO CIVIL | I39: =SUM(I40:I41) -> 7292.6
A40: 13.30 | B40: Sinapi | C40: 91341 | D40: PORTA EM ALUMÍNIO DE ABRIR TIPO VENEZIANA COM GUARNIÇÃO, FIXAÇÃO COM PARAFUSOS - FORNECIMENTO E INSTALAÇÃO. | E40: m² | F40: 5.04 | G40: =J40 -> 661.63 | H40: 833.058333 | I40: =ROUND(F40*H40,2) -> 4198.61 | J40: 661.63
A41: 13.31 | B41: Sinapi | C41: 100674 | D41: JANELA FIXA DE ALUMÍNIO PARA VIDRO, COM VIDRO, BATENTE E FERRAGENS. EXCLUSIVE ACABAMENTO, ALIZAR E CONTRAMARCO. FORNECIMENTO E INSTALAÇÃO. | E41: m² | F41: 3.75 | G41: 655.28 | H41: 825.063048 | I41: =ROUND(F41*H41,2) -> 3093.99 | J41: 655.28
A42: 13.32 | D42: INSTALAÇÕES PREDIAIS | I42: =SUM(I43:I46) -> 13941.42
A43: 13.33 | B43: CPU | C43: CPU001 | D43: =[1]CPU!$A$65 -> EXECUÇÃO DE INSTALAÇÕES HIDROSSANITÁRIAS, EXCLUSIVE EQUIPAMENTOS | E43: =[1]CPU!$I$78 -> cj | F43: 1 | G43: =J43 -> 3059.6 | H43: 3852.34236 | I43: =ROUND(F43*H43,2) -> 3852.34 | J43: =CPU!I43 -> 3059.6
A44: 13.34 | B44: SINAPI | C44: 98052 | D44: TANQUE SÉPTICO CIRCULAR, EM CONCRETO PRÉ-MOLDADO, DIÂMETRO INTERNO = 1,10 M, ALTURA INTERNA = 2,50 M, VOLUME ÚTIL: 2138,2 L (PARA 5 CONTRIBUINTES). | E44: UND | F44: 1 | G44: 1902.01 | H44: 2394.820791 | I44: =ROUND(F44*H44,2) -> 2394.82 | J44: 1902.01
A45: 13.35 | B45: SINAPI | C45: 98062 | D45: SUMIDOURO CIRCULAR, EM CONCRETO PRÉ-MOLDADO, DIÂMETRO INTERNO = 1,88 M, ALTURA INTERNA = 2,00 M, ÁREA DE INFILTRAÇÃO: 13,1 M² (PARA 5 CONTRIBUINTES) | E45: UND | F45: 1 | G45: 2804.12 | H45: 3530.667492 | I45: =ROUND(F45*H45,2) -> 3530.67 | J45: 2804.12
A46: 13.36 | B46: CPU | C46: CPU002 | D46: =[1]CPU!$A$78 -> EXECUÇÃO DE INSTALAÇÕES ELÉTRICAS, EXCLUSIVE EQUIPAMENTOS | E46: =[1]CPU!$I$78 -> cj | F46: 1 | G46: 3306.8 | H46: 4163.59188 | I46: =ROUND(F46*H46,2) -> 4163.59 | J46: =CPU!I56 -> 3306.8
A47: 13.37 | D47: SERVIÇOS DIVERSOS | I47: =SUM(I48:I52) -> 30203.05
A48: 13.38 | B48: CPU | C48: CPU003 | D48: =[1]CPU!$A$140 -> CORTE DE CONTAINER PARA ESQUADRIAS | E48: =[1]CPU!$I$140 -> m² | F48: 16.45 | G48: =J48 -> 183.37 | H48: 230.881167 | I48: =ROUND(F48*H48,2) -> 3798 | J48: =CPU!I74 -> 183.37
A49: 13.39 | B49: CPU | C49: CPU004 | D49: =[1]CPU!$A$182 -> MODIFICAÇÕES NO CONTAINER COM CORTE POR ESMERILHADEIRA | E49: =[1]CPU!$I$182 -> m | F49: 58.26 | G49: 95.8925 | H49: 120.7382468 | I49: 7034.21 | J49: =CPU!I116 -> 95.8925
A50: 13.40 | B50: CPU | C50: CPU005 | D50: =[1]CPU!$A$200 -> MODIFICAÇÕES NO CONTAINER UNIÃO ATRAVÉS DO PROCESSO DE SOLDAGEM, INCLUSO IÇAMENTO DO CONTAINER | E50: =[1]CPU!$I$200 -> m | F50: 21.9 | G50: 406.512548 | H50: 511.8399492 | I50: 11209.29 | J50: =CPU!I138 -> 406.512548
A51: 13.41 | B51: CPU | C51: CPU011 | D51: GUARDA-CORPO DE AÇO CARBONO, MONTANTES TUBULARES DE 1.1/2" ESPAÇADOS EM 0,75M, ALTURA APROXIMADA DE 0,90M, PREPARADO COM FUNDO E TINTA EPÓXI NA COR AMARELA | E51: m | F51: =0.75*2*3*1.1 -> 4.95 | G51: 599.2212133 | H51: 754.4794297 | I51: 3734.67 | J51: =CPU!I229 -> 599.2212133
A52: 13.42 | B52: CPU | C52: CPU013 | D52: FORNECIMENTO E INSTALAÇÃO DE SUPORTE PARA CAIXA D'ÁGUA EM METALON | E52: un | F52: 1 | G52: 3515.90796 | H52: 4426.879713 | I52: 4426.88 | J52: =CPU!I283 -> 3515.90796
A53: 13.43 | D53: MATERIAIS | I53: =SUM(I54:I115) -> 118282.56
A54: 13.44 | B54: Cotação | D54: CONTAINER DRY BOX 20 PÉS 6,1X2,21X2,6 (COMPXLARGXALTU) | E54: un | F54: 2 | G54: =J54 -> 19283 | H54: =G54*$K$2 -> 21905.488 | I54: =ROUND(F54*H54,2) -> 43810.98 | J54: =CPU!I246 -> 19283
A55: 13.45 | B55: Sinapi | C55: 89356 | D55: TUBO PVC, SOLDAVEL, DN 25 MM, AGUA FRIA (NBR-5648) | E55: m | F55: 12 | G55: 25.16 | H55: =G55*$K$2 -> 28.58176 | I55: 342.98 | J55: 25.16
A56: 13.46 | B56: Sinapi | C56: 89357 | D56: TUBO PVC, SOLDAVEL, DN 32 MM, AGUA FRIA (NBR-5648) | E56: m | F56: 18 | G56: 33.86 | H56: 38.46496 | I56: 692.37 | J56: 33.86
A57: 13.47 | B57: Sinapi | C57: 9835 | D57: TUBO PVC SERIE NORMAL, DN 40 MM, PARA ESGOTO PREDIAL (NBR 5688) | E57: m | F57: 3 | G57: 6.35 | H57: 7.2136 | I57: 21.64 | J57: 6.35
A58: 13.48 | B58: Sinapi | C58: 9838 | D58: TUBO PVC SERIE NORMAL, DN 50 MM, PARA ESGOTO PREDIAL (NBR 5688) | E58: m | F58: 20 | G58: 10.5 | H58: 11.928 | I58: 238.56 | J58: 10.5
A59: 13.49 | B59: Sinapi | C59: 9836 | D59: TUBO PVC SERIE NORMAL, DN 100 MM, PARA ESGOTO PREDIAL (NBR 5688) | E59: m | F59: 1 | G59: 14.55 | H59: 16.5288 | I59: 16.53 | J59: 14.55
A60: 13.50 | B60: Sinapi | C60: 89362 | D60: JOELHO 90 GRAUS, PVC, SOLDÁVEL, DN 25MM, INSTALADO EM RAMAL OU SUB-RAMAL DE ÁGUA - FORNECIMENTO E INSTALAÇÃO. AF_06/2022 | E60: un | F60: 12 | G60: 10.1 | H60: 11.4736 | I60: 137.68 | J60: 10.1
A61: 13.51 | B61: Sinapi | C61: 89367 | D61: JOELHO 90 GRAUS, PVC, SOLDÁVEL, DN 32MM, INSTALADO EM RAMAL OU SUB-RAMAL DE ÁGUA - FORNECIMENTO E INSTALAÇÃO. AF_06/2022 | E61: un | F61: 10 | G61: 13.63 | H61: 15.48368 | I61: =ROUND(F61*H61,2) -> 154.84 | J61: 13.63
A62: 13.52 | B62: Sinapi | C62: 3515 | D62: JOELHO PVC, SOLDAVEL, COM BUCHA DE LATAO, 90 GRAUS, 20 MM X 1/2", PARA AGUA FRIA | E62: un | F62: 2 | G62: 6.01 | H62: 6.82736 | I62: =ROUND(F62*H62,2) -> 13.65 | J62: 6.01
A63: 13.53 | B63: Sinapi | C63: 7121 | D63: TE PVC, SOLDAVEL, COM BUCHA DE LATAO NA BOLSA CENTRAL, 90 GRAUS, 20 MM X 1/2", PARA AGUA FRIA PREDIAL | E63: un | F63: 2 | G63: 8.45 | H63: 9.5992 | I63: =ROUND(F63*H63,2) -> 19.2 | J63: 8.45
A64: 13.54 | B64: Sinapi | C64: 798 | D64: BUCHA DE REDUCAO PVC ROSCAVEL 3/4" X 1/2" | E64: un | F64: 2 | G64: 1.08 | H64: 1.22688 | I64: =ROUND(F64*H64,2) -> 2.45 | J64: 1.08
A65: 13.55 | B65: Sinapi | C65: 103957 | D65: BUCHA DE REDUÇÃO, CURTA, PVC, SOLDÁVEL, DN 32 X 25 MM, INSTALADO EM PRUMADA DE ÁGUA - FORNECIMENTO E INSTALAÇÃO. AF_06/2022 | E65: un | F65: 2 | G65: 4.94 | H65: 5.61184 | I65: 11.22 | J65: 4.94
A66: 13.56 | B66: Sinapi | C66: 3878 | D66: LUVA PVC, ROSCAVEL, 1 1/2", AGUA FRIA PREDIAL | E66: un | F66: 2 | G66: 11.03 | H66: 12.53008 | I66: 25.06 | J66: 11.03
A67: 13.57 | B67: Sinapi | C67: 4177 | D67: NIPLE DE FERRO GALVANIZADO, COM ROSCA BSP, DE 1/2" | E67: un | F67: 2 | G67: 5.64 | H67: 6.40704 | I67: 12.81 | J67: 5.64
A68: 13.58 | B68: Sinapi | C68: 89395 | D68: TE, PVC, SOLDÁVEL, DN 25MM, INSTALADO EM RAMAL OU SUB-RAMAL DE ÁGUA - FORNECIMENTO E INSTALAÇÃO. AF_06/2022 | E68: un | F68: 3 | G68: 13.86 | H68: 15.74496 | I68: 47.23 | J68: 13.86
A69: 13.59 | B69: Sinapi | C69: 89398 | D69: TE, PVC, SOLDÁVEL, DN 32MM, INSTALADO EM RAMAL OU SUB-RAMAL DE ÁGUA - FORNECIMENTO E INSTALAÇÃO. AF_06/2022 | E69: un | F69: 3 | G69: 18.94 | H69: 21.51584 | I69: 64.55 | J69: 18.94
A70: 13.60 | B70: Sinapi | C70: 97 | D70: ADAPTADOR PVC SOLDAVEL, COM FLANGE E ANEL DE VEDACAO, 32 MM X 1", PARA CAIXA D'AGUA | E70: un | F70: 4 | G70: 17.09 | H70: 19.41424 | I70: 77.66 | J70: 17.09
A71: 13.61 | B71: Sinapi | C71: 11675 | D71: REGISTRO DE ESFERA, PVC, COM VOLANTE, VS, SOLDAVEL, DN 32 MM, | E71: un | F71: 4 | G71: 21.43 | H71: 24.34448 | I71: 97.38 | J71: 21.43
A72: 13.62 | B72: Sinapi | C72: 34637 | D72: CAIXA D'AGUA / RESERVATORIO EM POLIETILENO, 500 LITROS, COM TAMPA | E72: un | F72: 1 | G72: 299.56 | H72: 340.30016 | I72: 340.3 | J72: 299.56
A73: 13.63 | B73: Sinapi | C73: 94495 | D73: REGISTRO DE GAVETA BRUTO, LATÃO, ROSCÁVEL, 1" - FORNECIMENTO E INSTALAÇÃO. AF_08/2021 | E73: un | F73: 1 | G73: 90.49 | H73: 102.79664 | I73: 102.8 | J73: 90.49
A74: 13.64 | B74: Sinapi | C74: 94496 | D74: REGISTRO DE GAVETA BRUTO, LATÃO, ROSCÁVEL, 1 1/4" - FORNECIMENTO E INSTALAÇÃO. AF_08/2021 | E74: un | F74: 2 | G74: 123.3 | H74: 140.0688 | I74: 280.14 | J74: 123.3
A75: 13.65 | B75: Sinapi | C75: 7603 | D75: TORNEIRA DE METAL AMARELO, PARA TANQUE / JARDIM, DE PAREDE, SEM BICO, CANO CURTO, PADRAO POPULAR / USO GERA | E75: un | F75: 2 | G75: 36.36 | H75: 41.30496 | I75: 82.61 | J75: 36.36
A76: 13.66 | B76: Sinapi | C76: 94795 | D76: TORNEIRA DE BOIA PARA CAIXA D'ÁGUA, ROSCÁVEL, 1/2" - FORNECIMENTO E INSTALAÇÃO. AF_08/2021 | E76: un | F76: 1 | G76: 31.61 | H76: 35.90896 | I76: 35.91 | J76: 31.61
A77: 13.67 | B77: Sinapi | C77: 20080 | D77: ADESIVO PLASTICO PARA PVC, FRASCO COM 175 GR | E77: un | F77: 2 | G77: 20.09 | H77: 22.82224 | I77: =ROUND(F77*H77,2) -> 45.64 | J77: 20.09
A78: 13.68 | B78: Sinapi | C78: 3143 | D78: FITA VEDA ROSCA 18MMX25M | E78: un | F78: 1 | G78: 9.07 | H78: 10.30352 | I78: =ROUND(F78*H78,2) -> 10.3 | J78: 9.07
A79: 13.69 | B79: Sinapi | C79: 35277 | D79: CAIXA DE GORDURA EM PVC, DIAMETRO MINIMO 300 MM, DIAMETRO DE SAIDA 100 MM CAPACIDADE APROXIMADA 18 LITROS, COM TAMPA E CESTO | E79: un | F79: 1 | G79: 339.97 | H79: 386.20592 | I79: =ROUND(F79*H79,2) -> 386.21 | J79: 339.97
A80: 13.70 | B80: Sinapi | C80: 11735 | D80: PROLONGADOR PAR CAIXA DE GORDURA E INSPEÇÃO DN300, PVC | E80: un | F80: 1 | G80: 8.47 | H80: 9.62192 | I80: =ROUND(F80*H80,2) -> 9.62 | J80: 8.47
A81: 13.71 | B81: Sinapi | C81: 89482 | D81: CAIXA SIFONADA, PVC, DN 100 X 100 X 50 MM, FORNECIDA E INSTALADA EM RAMAIS DE ENCAMINHAMENTO DE ÁGUA PLUVIAL. AF_06/2022 | E81: un | F81: 5 | G81: 38.33 | H81: 43.54288 | I81: =ROUND(F81*H81,2) -> 217.71 | J81: 38.33
A82: 13.72 | B82: Sinapi | C82: 94679 | D82: CURVA 90 GRAUS, PVC, SOLDÁVEL, DN 50 MM, INSTALADO EM RESERVAÇÃO DE ÁGUA DE EDIFICAÇÃO QUE POSSUA RESERVATÓRIO DE FIBRA/FIBROCIMENTO FORNECIMENTO E INSTALAÇÃO. AF_06/2016 | E82: un | F82: 11 | G82: 21.57 | H82: 24.50352 | I82: 269.54 | J82: 21.57
A83: 13.73 | B83: Sinapi | C83: 89504 | D83: CURVA 45 GRAUS, PVC, SOLDÁVEL, DN 50MM, INSTALADO EM PRUMADA DE ÁGUA - FORNECIMENTO E INSTALAÇÃO. AF_06/2022 | E83: un | F83: 3 | G83: 18.12 | H83: 20.58432 | I83: 61.75 | J83: 18.12
A84: 13.74 | B84: Sinapi | C84: 89724 | D84: JOELHO 90 GRAUS, PVC, SERIE NORMAL, ESGOTO PREDIAL, DN 40 MM, JUNTA SOLDÁVEL, FORNECIDO E INSTALADO EM RAMAL DE DESCARGA OU RAMAL DE ESGOTO SANITÁRIO. AF_08/2022 | E84: un | F84: 1 | G84: 10.69 | H84: 12.14384 | I84: 12.14 | J84: 10.69
A85: 13.75 | B85: Sinapi | C85: 89731 | D85: JOELHO 90 GRAUS, PVC, SERIE NORMAL, ESGOTO PREDIAL, DN 50 MM, JUNTA ELÁSTICA, FORNECIDO E INSTALADO EM RAMAL DE DESCARGA OU RAMAL DE ESGOTO SANITÁRIO. AF_08/2022 | E85: un | F85: 8 | G85: 14.13 | H85: 16.05168 | I85: 128.41 | J85: 14.13
A86: 13.76 | B86: Sinapi | C86: 89563 | D86: JUNÇÃO SIMPLES, PVC, SERIE R, ÁGUA PLUVIAL, DN 50 MM, JUNTA ELÁSTICA, FORNECIDO E INSTALADO EM RAMAL DE ENCAMINHAMENTO. AF_06/2022 | E86: un | F86: 2 | G86: 33.32 | H86: 37.85152 | I86: 75.7 | J86: 33.32
A87: 13.77 | B87: Sinapi | C87: 103995 | D87: LUVA, PVC, SOLDÁVEL, DN 50MM, INSTALADO EM RAMAL DE DISTRIBUIÇÃO DE ÁGUA - FORNECIMENTO E INSTALAÇÃO. AF_06/2022 | E87: un | F87: 17 | G87: 15.11 | H87: 17.16496 | I87: 291.8 | J87: 15.11
A88: 13.78 | B88: Sinapi | C88: 104345 | D88: JUNÇÃO DE REDUÇÃO INVERTIDA, PVC, SÉRIE NORMAL, ESGOTO PREDIAL, DN 100 X 50 MM, JUNTA ELÁSTICA, FORNECIDO E INSTALADO EM RAMAL DE DESCARGA OU RAMAL DE ESGOTO SANITÁRIO. AF_08/2022 | E88: un | F88: 2 | G88: 42.4 | H88: 48.1664 | I88: 96.33 | J88: 42.4
A89: 13.79 | B89: Sinapi | C89: 20043 | D89: REDUÇÃO EXCÊNTRICA, PVC, ÁGUA PLUVIAL, DN 100 X 50 MM, LINHA NORMAL | E89: un | F89: 2 | G89: 8.76 | H89: 9.95136 | I89: =ROUND(F89*H89,2) -> 19.9 | J89: 8.76
A90: 13.80 | B90: Sinapi | C90: 86883 | D90: SIFÃO DO TIPO FLEXÍVEL EM PVC 1 X 1.1/2 - FORNECIMENTO E INSTALAÇÃO. AF_01/2020 | E90: un | F90: 1 | G90: 13.5 | H90: 15.336 | I90: 15.34 | J90: 13.5
A91: 13.81 | B91: Sinapi | C91: 86941 | D91: LAVATÓRIO LOUÇA BRANCA COM COLUNA, 45 X 55CM OU EQUIVALENTE, PADRÃO MÉDIO, INCLUSO SIFÃO TIPO GARRAFA, VÁLVULA E ENGATE FLEXÍVEL DE 40CM EMMETAL CROMADO, COM TORNEIRA CROMADA DE MESA, PADRÃO MÉDIO - FORNECIMENTO E INSTALAÇÃO. | E91: un | F91: 1 | G91: 919.9 | H91: 1045.0064 | I91: 1045.01 | J91: 919.9
A92: 13.82 | B92: Sinapi | C92: 86936 | D92: CUBA DE EMBUTIR DE AÇO INOXIDÁVEL MÉDIA, INCLUSO VÁLVULA TIPO AMERICANA E SIFÃO TIPO GARRAFA EM METAL CROMADO - FORNECIMENTO E INSTALAÇÃO | E92: un | F92: 1 | G92: 571.35 | H92: 649.0536 | I92: 649.05 | J92: 571.35
A93: 13.83 | B93: Cotação | D93: LAVADOR DE BOTAS EM AÇO INOXIDÁVEL AISI 304 | E93: un | F93: 1 | G93: 3821.753333 | H93: 4341.511787 | I93: 4341.51 | J93: =O93 -> 3821.753333 | L93: 3921.93 | M93: 2433.33 | N93: 5110 | O93: =AVERAGE(L93:N93) -> 3821.753333
A94: 13.84 | B94: Sinapi | C94: 86906 | D94: TORNEIRA CROMADA DE MESA, 1/2 OU 3/4, PARA LAVATÓRIO, PADRÃO POPULAR - FORNECIMENTO E INSTALAÇÃO. AF_01/2020 | E94: un | F94: 2 | G94: 70.84 | H94: 80.47424 | I94: 160.95 | J94: 70.84
A95: 13.85 | B95: Sinapi | C95: 94768 | D95: ADAPTADOR COM FLANGE E ANEL DE VEDAÇÃO, CPVC, ROSCÁVEL, DN 42 MM, INSTALADO EM RESERVAÇÃO DE ÁGUA DE EDIFICAÇÃO QUE POSSUA RESERVATÓRIO DE FIBRA/FIBROCIMENTO - FORNECIMENTO E INSTALAÇÃO. AF_06/2016 | E95: un | F95: 1 | G95: 76.17 | H95: 86.52912 | I95: 86.53 | J95: 76.17
A96: 13.86 | B96: Cotação | D96: PEDALEIRA PARA ACIONAMENTO TORNEIRA, ROSCA 1/2" | E96: un | F96: 2 | G96: 145.3966667 | H96: 165.1706133 | I96: 330.34 | J96: =O96 -> 145.3966667 | L96: 133.4 | M96: 137.89 | N96: 164.9 | O96: =AVERAGE(L96:N96) -> 145.3966667
A97: 13.87 | B97: Sinapi | C97: 91924 | D97: CABO DE COBRE FLEXÍVEL ISOLADO, 1,5 MM², ANTI-CHAMA 450/750 V, PARA CIRCUITOS TERMINAIS - FORNECIMENTO E INSTALAÇÃO. AF_03/2023 | E97: m | F97: 49 | G97: 3.09 | H97: 3.51024 | I97: 172 | J97: 3.09
A98: 13.88 | B98: Sinapi | C98: 91926 | D98: CABO DE COBRE, RIGIDO, CLASSE 2, ISOLACAO EM PVC/A, ANTICHAMA BWF-B, 1 CONDUTOR, 450/750 V, SECAO NOMINAL 2,5 MM2 | E98: m | F98: 180 | G98: 4.47 | H98: 5.07792 | I98: 914.03 | J98: 4.47
A99: 13.89 | B99: Sinapi | C99: 91952 | D99: INTERRUPTOR SIMPLES (1 MÓDULO), 10A/250V, SEM SUPORTE E SEM PLACA - FORNECIMENTO E INSTALAÇÃO. AF_03/2023 | E99: un | F99: 4 | G99: 19.75 | H99: 22.436 | I99: 89.74 | J99: 19.75
A100: 13.90 | B100: Sinapi | C100: 91990 | D100: TOMADA ALTA DE EMBUTIR (1 MÓDULO), 2P+T 10 A, SEM SUPORTE E SEM PLACA - FORNECIMENTO E INSTALAÇÃO. AF_03/2023 | E100: un | F100: 1 | G100: 36.59 | H100: 41.56624 | I100: 41.57 | J100: 36.59
A101: 13.91 | B101: ORSE | C101: 11054/ORSE | D101: CAIXA METÁLICA COM UMA TOMADA 2P+T PARA INSTALAÇÃO APARENTE | E101: un | F101: 10 | G101: 27.17 | H101: 30.86512 | I101: 308.65 | J101: 27.17
A102: 13.92 | B102: Sinapi | C102: 95777 | D102: CONDULETE DE ALUMÍNIO, TIPO B, PARA ELETRODUTO DE AÇO GALVANIZADO DN 20 MM (3/4''), APARENTE - FORNECIMENTO E INSTALAÇÃO. AF_10/2022 | E102: un | F102: 5 | G102: 30.74 | H102: 34.92064 | I102: 174.6 | J102: 30.74
A103: 13.93 | B103: Sinapi | C103: 101890 | D103: DISJUNTOR MONOPOLAR TIPO NEMA, CORRENTE NOMINAL DE 10 ATÉ 30A - FORNECIMENTO E INSTALAÇÃO. AF_10/2020 | E103: un | F103: 1 | G103: 20.1 | H103: 22.8336 | I103: 22.83 | J103: 20.1
A104: 13.94 | B104: Sinapi | C104: 101892 | D104: DISJUNTOR MONOPOLAR TIPO NEMA, CORRENTE NOMINAL DE 10 ATÉ 50A - FORNECIMENTO E INSTALAÇÃO. AF_10/2020 | E104: un | F104: 7 | G104: 89.28 | H104: 101.42208 | I104: 709.95 | J104: 89.28
A105: 13.95 | B105: ORSE | C105: 07943/ORSE | D105: DISJUNTOR BIPOLAR DR 25A - DISPOSITIvO DIFERENCIAL RESIDUAL, TIPO AC, 30MA | E105: un | F105: 3 | G105: 278.5 | H105: 316.376 | I105: 949.13 | J105: 278.5
A106: 13.96 | B106: Sinapi | C106: 93661 | D106: DISJUNTOR BIPOLAR TIPO DIN, CORRENTE NOMINAL DE 16A - FORNECIMENTO E INSTALAÇÃO. AF_10/2020 | E106: un | F106: 2 | G106: 72.43 | H106: 82.28048 | I106: 164.56 | J106: 72.43
A107: 13.97 | B107: Sinapi | C107: 93665 | D107: DISJUNTOR BIPOLAR TIPO DIN, CORRENTE NOMINAL DE 40A - FORNECIMENTO E INSTALAÇÃO. AF_10/2020 | E107: un | F107: 1 | G107: 83.34 | H107: 94.67424 | I107: 94.67 | J107: 83.34
A108: 13.98 | B108: ORSE | C108: 04878/ORSE | D108: PONTO DE LUZ EM TETO OU PAREDE, APARENTE SEM ELETRODUTO | E108: un | F108: 5 | G108: 65.23 | H108: 74.10128 | I108: 362.39 | J108: 65.23
A109: 13.99 | B109: ORSE | C109: 14448/ORSE | D109: ELETRODUTO DE AÇO GALVANIZADO LEVE, INCLUSIVE CONEXÕES, SUPORTES E FIXAÇÃO DN 20 (3/4") | E109: m | F109: 50 | G109: 33.67 | H109: 38.24912 | I109: =ROUND(F109*H109,2) -> 1912.46 | J109: 33.67
A110: 13.100 | B110: Sinapi | C110: 1879 | D110: CURVA 90° PVC ELETRODUTO ROSCAVEL 3/4" | E110: un | F110: 16 | G110: 3.35 | H110: 3.8056 | I110: 60.89 | J110: 3.35
A111: 13.101 | B111: Sinapi | C111: 39128 | D111: ABRAÇADEIRA GALVANIZADA "D" PARA ELETRODUTO 3/4" COM CUNHA | E111: un | F111: 50 | G111: 1.7 | H111: 1.9312 | I111: 96.56 | J111: 1.7
A112: 13.102 | B112: Sinapi | C112: 101878 | D112: QUADRO DE DISTRIBUIÇÃO DE ENERGIA EM CHAPA DE AÇO GALVANIZADO, DE SOBREPOR, COM BARRAMENTO TRIFÁSICO, PARA 18 DISJUNTORES DIN 100A - FORNECIMENTO E INSTALAÇÃO. AF_10/2020 | E112: un | F112: 1 | G112: 569.38 | H112: 646.81568 | I112: 646.82 | J112: 569.38
A113: 13.103 | B113: Sinapi | C113: 100954 | D113: TRANSPORTE COM CAMINHÃO CARROCERIA COM GUINDAUTO (MUNCK), MOMENTO MÁXIMO DE CARGA 11,7 TM, EM VIA INTERNA (DENTRO DO CANTEIRO - UNIDADE: TXKM). AF_07/2020 | E113: TXKM | F113: 800 | G113: 8.88 | H113: 10.08768 | I113: =ROUND(F113*H113,2) -> 8070.14 | J113: 8.88
A114: 13.104 | B114: CPU | C114: CPU006 | D114: REVESTIMENTO DE PAREDES EM CHAPAS DE AÇO INOXIDÁVEL AISI 304 - APENAS MATERIAL | E114: M² | F114: 70.54 | G114: 350.736 | H114: 398.436096 | I114: =ROUND(F114*H114,2) -> 28105.68 | J114: =CPU!I150 -> 350.736
A115: 13.105 | B115: CPU | C115: CPU008 | D115: CHAPA XADREZ EM ALUMINIO PARA PISO e:3mm, INCLUSO REBITE PARA FIXAÇÃO - APENAS MATERIAL | E115: M² | F115: 29.9 | G115: 603.6424 | H115: 685.7377664 | I115: =ROUND(F115*H115,2) -> 20503.56 | J115: =CPU!I180 -> 603.6424

Sheet UBF
A1: MINISTÉRIO DA INTEGRAÇÃO E DO DESENVOLVIMENTO REGIONAL | J1: BDI serviç | K1: 1.2591
A2: COMPANHIA DE DESENVOLVIMENTO DOS VALES DO SÃO FRANCISCO E DO PARNAÍBA | J2: BDI fornec. | K2: 1.136
A3: SEDE
A4: PLANILHA ORÇAMENTÁRIA DE ESTIMATIVA GERAL PARA O ESTADO DE MINAS GERAIS (16ª SR) | H4: Base SINAPI-MG 03-2025 ORSE 02-2025
H5: Data: Maio - 2025
A7: Item | B7: Base | C7: Código | D7: Descrição | E7: Unid. | F7: Quant. | G7: Valor (R$)
G8: Unit. (sem BDI) | H8: Unit. (com BDI) | I8: Total
A10: 14 | D10: UNIDADE DE BENEFICIAMENTO DE FRUTOS | I10: =SUM(I11,I14,I20,I25,I31,I33,I37,I43,I48,I55) -> 330475.6458
A11: 14.1 | D11: SERVIÇOS PRELIMINARES | I11: =SUM(I12:I13) -> 5801.93
A12: 14.2 | B12: sinapi | C12: 105009 | D12: =[1]CPU!$A$91 -> LOCAÇÃO DE OBRAS | E12: m | F12: =15+10+15+10 -> 50 | G12: =J12 -> 90.03 | H12: =(G12*K$1) -> 113.356773 | I12: =ROUND(F12*H12,2) -> 5667.84 | J12: 90.03
A13: 14.3 | B13: Sinapi | C13: 98525 | D13: LIMPEZA MECANIZADA DE CAMADA VEGETAL, VEGETAÇÃO E PEQUENAS ÁRVORES (DIÂMETRO DE TRONCO MENOR QUE 0,20 M), COM TRATOR DE ESTEIRAS. | E13: m² | F13: =15*10 -> 150 | G13: =J13 -> 0.71 | H13: =(G13*K$1) -> 0.893961 | I13: =ROUND(F13*H13,2) -> 134.09 | J13: 0.71
A14: 14.4 | D14: MOVIMENTO DE TERRA | I14: =SUM(I15:I19) -> 3103.44
A15: 14.5 | B15: Sinapi | C15: 101230 | D15: ESCAVAÇÃO VERTICAL A CÉU ABERTO, EM OBRAS DE INFRAESTRUTURA, INCLUINDO CARGA, DESCARGA E TRANSPORTE, EM SOLO DE 1ª CATEGORIA COM ESCAVADEIRA HIDRÁULICA (CAÇAMBA: 0,8 M³ / 111 HP) | E15: m³ | F15: 54.76 | G15: =J15 -> 11.62 | H15: =G15*$K$1 -> 14.630742 | I15: =ROUND(F15*H15,2) -> 801.18 | J15: 11.62
A16: 14.6 | B16: Sinapi | C16: 100577 | D16: REGULARIZAÇÃO E COMPACTAÇÃO DE SUBLEITO DE SOLO PREDOMINANTEMENTE ARENOSO. | E16: m² | F16: 150 | G16: 0.5 | H16: =G16*$K$1 -> 0.62955 | I16: =ROUND(F16*H16,2) -> 94.43 | J16: 0.5
A17: 14.7 | B17: Sinapi | C17: 96385 | D17: EXECUÇÃO E COMPACTAÇÃO DE ATERRO COM SOLO PREDOMINANTEMENTE ARGILOSO - EXCLUSIVE SOLO, ESCAVAÇÃO, CARGA E TRANSPORTE | E17: m³ | F17: 75 | G17: 12.48 | H17: =G17*$K$1 -> 15.713568 | I17: =ROUND(F17*H17,2) -> 1178.52 | J17: 12.48
A18: 14.8 | B18: Sinapi | C18: 100574 | D18: ESPALHAMENTO DE MATERIAL COM TRATOR DE ESTEIRAS. | E18: m³ | F18: 75 | G18: 1.48 | H18: =G18*$K$1 -> 1.863468 | I18: =ROUND(F18*H18,2) -> 139.76 | J18: 1.48
A19: 14.9 | B19: Sinapi | C19: 100973 | D19: CARGA, MANOBRA E DESCARGA DE SOLOS E MATERIAIS GRANULARES EM CAMINHÃO BASCULANTE 6 M³ - CARGA COM PÁ CARREGADEIRA (CAÇAMBA DE 1,7 A 2,8 M³ /128 HP) E DESCARGA LIVRE | E19: m³ | F19: 75 | G19: 9.42 | H19: =G19*$K$1 -> 11.860722 | I19: =ROUND(F19*H19,2) -> 889.55 | J19: 9.42
A20: 14.10 | D20: FUNDAÇÕES/ ESTRUTURAS DE CONCRETO ARMADO | I20: =SUM(I21:I24) -> 15219.31578
A21: 14.11 | B21: Sinapi | C21: 92802 | D21: CORTE E DOBRA DE AÇO CA-50, DIÂMETRO DE 8,0 MM | E21: kg | F21: 101.6 | G21: =J21 -> 9.6 | H21: =G21*K1 -> 12.08736 | I21: =H21*F21 -> 1228.075776 | J21: 9.6
A22: 14.12 | B22: Sinapi | C22: 94965 | D22: CONCRETO FCK = 25MPA, TRAÇO 1:2,3:2,7 (CIMENTO/ AREIA MÉDIA/ BRITA 1) - PREPARO MECÂNICO COM BETONEIRA 400 L. | E22: m³ | F22: 17 | G22: 540.54 | H22: =G22*K1 -> 680.593914 | I22: =ROUND(F22*H22,2) -> 11570.1 | J22: 540.54
A23: 14.13 | B23: Sinapi | C23: 103673 | D23: LANÇAMENTO COM USO DE BOMBA, ADENSAMENTO E ACABAMENTO DE CONCRETO EM ESTRUTURAS. AF_02/2022 | E23: m³ | F23: 17 | G23: 44.5 | H23: =G23*K1 -> 56.02995 | I23: =ROUND(F23*H23,2) -> 952.51 | J23: 44.5
A24: 14.14 | B24: Sinapi | C24: 97086 | D24: FABRICAÇÃO, MONTAGEM E DESMONTAGEM DE FORMA PARA RADIER, EM MADEIRA SERRADA, 4 UTILIZAÇÕES. | E24: m² | F24: 7.8 | G24: 149.54 | H24: =G24*K1 -> 188.285814 | I24: =ROUND(F24*H24,2) -> 1468.63 | J24: 149.54
A25: 14.15 | D25: ALVENARIAS, DIVISÓRIAS E FECHAMENTOS | I25: =SUM(I26:I30) -> 22191.23
A26: 14.16 | B26: CPU | C26: CPU010 | D26: REVESTIMENTO DE PAREDES EM CHAPAS DE AÇO INOXIDÁVEL AISI 304 | E26: M² | F26: 20 | G26: =J26 -> 46.864 | H26: =G26*K$1 -> 59.0064624 | I26: =ROUND(F26*H26,2) -> 1180.13 | J26: =CPU!I206 -> 46.864
A27: 14.17 | B27: ORSE | C27: 10280/ORSE | D27: MANTA EM LÃ DE VIDRO | E27: M² | F27: 134.78 | G27: 15.05 | H27: =G27*$K$1 -> 18.949455 | I27: =ROUND(F27*H27,2) -> 2554.01 | J27: 15.05
A28: 14.18 | B28: CPU | C28: CPU009 | D28: CHAPA XADREZ EM ALUMINIO PARA PISO e:3mm, INCLUSO REBITE PARA FIXAÇÃO | E28: UN | F28: 1 | G28: 423.7691 | H28: =G28*K$1 -> 533.5676738 | I28: =ROUND(F28*H28,2) -> 533.57 | J28: =CPU!I193 -> 423.7691
A29: 14.19 | B29: Sinapi | C29: 104723 | D29: PAREDE COM SISTEMA EM CHAPAS DE GESSO PARA DRYWALL, USO INTERNO, COM DUAS FACES DUPLAS E ESTRUTURA METÁLICA COM GUIAS DUPLAS PARA PAREDES COM ÁREA LÍQUIDA MENOR QUE 6 M2, COM VÃOS. | E29: m² | F29: 42.8 | G29: 240.62 | H29: 302.964642 | I29: =ROUND(F29*H29,2) -> 12966.89 | J29: 240.62
A30: 14.20 | B30: Sinapi | C30: 96486 | D30: FORRO EM RÉGUAS DE PVC, LISO, PARA AMBIENTES COMERCIAIS, INCLUSIVE ESTRUTURA BIDIRECIONAL DE FIXAÇÃO | E30: m² | F30: 54.112 | G30: 72.75 | H30: 91.599525 | I30: =ROUND(F30*H30,2) -> 4956.63 | J30: 72.75
A31: 14.21 | D31: PINTURAS | I31: =SUM(I32:I32) -> 16972.68
A32: 14.22 | B32: Sinapi | C32: 100751 | D32: PINTURA COM TINTA EPOXÍDICA DE ACABAMENTO PULVERIZADA SOBRE PERFIL METÁLICO EXECUTADO EM FÁBRICA (02 DEMÃOS). | E32: m² | F32: 263.9 | G32: =J32 -> 51.08 | H32: 64.314828 | I32: =ROUND(F32*H32,2) -> 16972.68 | J32: 51.08
A33: 14.23 | D33: COBERTURAS | I33: =SUM(I34:I36) -> 35352.73
A34: 14.24 | B34: ORSE | C34: 13874/ORSE | D34: ESTRUTURA METALICA P/ COBERTURA DE CRECHE PADRÃO 1 DO PADRÃO FNDE, EM LIGTH STEEL FRAME, COM PERFIS UE70 MONTANTES DE TUBO UE70, INCLUSIVE FORNECIMENTO E MONTAGEM. EXCLUSIVE TELHAS | E34: m² | F34: 98.42 | G34: =J34 -> 113.51 | H34: =(G34*K$1) -> 142.920441 | I34: =ROUND(F34*H34,2) -> 14066.23 | J34: 113.51
A35: 14.25 | B35: Sinapi | C35: 94216 | D35: TELHAMENTO COM TELHA METÁLICA TERMOACÚSTICA E = 30 MM, COM ATÉ 2 ÁGUAS, INCLUSO IÇAMENTO | E35: M2 | F35: 98.42 | G35: =J35 -> 153.34 | H35: 193.070394 | I35: =ROUND(F35*H35,2) -> 19001.99 | J35: 153.34
A36: 14.26 | B36: Sinapi | C36: 94228 | D36: CALHA EM CHAPA DE AÇO GALVANIZADO NÚMERO 24, DESENVOLVIMENTO DE 50 CM, INCLUSO TRANSPORTE VERTICAL. AF_07/2019 | E36: m | F36: 18 | G36: 100.8 | H36: 126.91728 | I36: 2284.51 | J36: 100.8
A37: 14.27 | D37: CONSTRUÇÃO CIVIL | I37: =SUM(I38:I40) -> 13442.77
A38: 14.28 | B38: Sinapi | C38: 100702 | D38: PORTA DE CORRER DE ALUMÍNIO, COM DUAS FOLHAS PARA VIDRO, INCLUSO VIDRO LISO INCOLOR, FECHADURA E PUXADOR, SEM ALIZAR. | E38: m² | F38: 4.85 | G38: =J38 -> 487.23 | H38: 613.471293 | I38: =ROUND(F38*H38,2) -> 2975.34 | J38: 487.23
A39: 14.29 | B39: Sinapi | C39: 91341 | D39: PORTA EM ALUMÍNIO DE ABRIR TIPO VENEZIANA COM GUARNIÇÃO, FIXAÇÃO COM PARAFUSOS - FORNECIMENTO E INSTALAÇÃO. | E39: m² | F39: 3.8 | G39: 661.63 | H39: 833.058333 | I39: =ROUND(F39*H39,2) -> 3165.62 | J39: 661.63
A40: 14.30 | B40: Sinapi | C40: 100674 | D40: JANELA FIXA DE ALUMÍNIO PARA VIDRO, COM VIDRO, BATENTE E FERRAGENS. EXCLUSIVE ACABAMENTO, ALIZAR E CONTRAMARCO. FORNECIMENTO E INSTALAÇÃO. | E40: m² | F40: 8.85 | G40: 655.28 | H40: 825.063048 | I40: =ROUND(F40*H40,2) -> 7301.81 | J40: 655.28
A41: 14.31 | B41: CPU | C41: CPU007 | D41: REVESTIMENTO CERÂMICO PARA PISO COM PLACAS TIPO ESMALTADA DE DIMENSÕES 45x45cm COM ARGAMASSA AC III | E41: m² | F41: 60 | G41: 91.943745 | H41: 115.7663693 | I41: =ROUND(F41*H41,2) -> 6945.98 | J41: =CPU!I169 -> 91.943745
A42: 14.32 | B42: Sinapi | C42: 94228 | D42: CALHA EM CHAPA DE AÇO GALVANIZADO NÚMERO 24, DESENVOLVIMENTO DE 50 CM, INCLUSO TRANSPORTE VERTICAL. AF_07/2019 | E42: m | F42: 24 | G42: 100.8 | H42: 126.91728 | I42: =ROUND(F42*H42,2) -> 3046.01 | J42: 100.8
A43: 14.33 | D43: INSTALAÇÕES PREDIAIS | I43: =SUM(I44:I47) -> 13941.42
A44: 14.34 | B44: CPU | C44: CPU001 | D44: =[2]CPU!$A$65 -> EXECUÇÃO DE INSTALAÇÕES HIDROSSANITÁRIAS, EXCLUSIVE EQUIPAMENTOS | E44: =[2]CPU!$I$78 -> cj | F44: 1 | G44: =J44 -> 3059.6 | H44: 3852.34236 | I44: =ROUND(F44*H44,2) -> 3852.34 | J44: =CPU!I43 -> 3059.6
A45: 14.35 | B45: CPU | C45: CPU002 | D45: =[2]CPU!$A$78 -> EXECUÇÃO DE INSTALAÇÕES ELÉTRICAS, EXCLUSIVE EQUIPAMENTOS | E45: =[2]CPU!$I$78 -> cj | F45: 1 | G45: 3306.8 | H45: 4163.59188 | I45: =ROUND(F45*H45,2) -> 4163.59 | J45: =CPU!I56 -> 3306.8
A46: 14.36 | B46: SINAPI | C46: 98052 | D46: TANQUE SÉPTICO CIRCULAR, EM CONCRETO PRÉ-MOLDADO, DIÂMETRO INTERNO = 1,10 M, ALTURA INTERNA = 2,50 M, VOLUME ÚTIL: 2138,2 L (PARA 5 CONTRIBUINTES). | E46: UND | F46: 1 | G46: 1902.01 | H46: 2394.820791 | I46: =ROUND(F46*H46,2) -> 2394.82 | J46: 1902.01
A47: 14.37 | B47: SINAPI | C47: 98062 | D47: SUMIDOURO CIRCULAR, EM CONCRETO PRÉ-MOLDADO, DIÂMETRO INTERNO = 1,88 M, ALTURA INTERNA = 2,00 M, ÁREA DE INFILTRAÇÃO: 13,1 M² (PARA 5 CONTRIBUINTES) | E47: UND | F47: 1 | G47: 2804.12 | H47: 3530.667492 | I47: 3530.67 | J47: 2804.12
A48: 14.38 | D48: SERVIÇOS DIVERSOS | I48: =SUM(I49:I54) -> 38296.53
A49: 14.39 | B49: CPU | C49: CPU003 | D49: =[2]CPU!$A$140 -> CORTE DE CONTAINER PARA ESQUADRIAS | E49: =[2]CPU!$I$140 -> m² | F49: 12.65 | G49: =J49 -> 183.37 | H49: 230.881167 | I49: =ROUND(F49*H49,2) -> 2920.65 | J49: =CPU!I74 -> 183.37
A50: 14.40 | B50: CPU | C50: CPU004 | D50: =[2]CPU!$A$182 -> MODIFICAÇÕES NO CONTAINER COM CORTE POR ESMERILHADEIRA | E50: =[2]CPU!$I$182 -> m | F50: 57.68 | G50: 95.8925 | H50: 120.7382468 | I50: 6964.18 | J50: =CPU!I116 -> 95.8925
A51: 14.41 | B51: CPU | C51: CPU005 | D51: =[2]CPU!$A$200 -> MODIFICAÇÕES NO CONTAINER UNIÃO ATRAVÉS DO PROCESSO DE SOLDAGEM, INCLUSO IÇAMENTO DO CONTAINER | E51: =[2]CPU!$I$200 -> m | F51: 40.8 | G51: 406.512548 | H51: 511.8399492 | I51: 20883.07 | J51: =CPU!I138 -> 406.512548
A52: 14.42 | B52: Orse | C52: 00900/ORSE | D52: ESCADA DE FERRO COM GUARDA-CORPO | E52: m | F52: 0.9 | G52: 1472.16 | H52: 1853.596656 | I52: 1668.24 | J52: 1472.16
A53: 14.43 | B53: CPU | C53: CPU011 | D53: GUARDA-CORPO DE AÇO CARBONO, MONTANTES TUBULARES DE 1.1/2" ESPAÇADOS EM 0,75M, ALTURA APROXIMADA DE 0,90M, PREPARADO COM FUNDO E TINTA EPÓXI NA COR AMARELA | E53: m | F53: 1.9 | G53: 599.2212133 | H53: 754.4794297 | I53: 1433.51 | J53: =CPU!I229 -> 599.2212133
A54: 14.44 | B54: CPU | C54: CPU013 | D54: FORNECIMENTO E INSTALAÇÃO DE SUPORTE PARA CAIXA D'ÁGUA EM METALON | E54: un | F54: 1 | G54: 3515.90796 | H54: 4426.879713 | I54: 4426.88 | J54: =CPU!I283 -> 3515.90796
A55: 14.45 | D55: MATERIAIS | I55: =SUM(I56:I104) -> 166153.6
A56: 14.46 | B56: Cotação | D56: CONTAINER HIGH CUBE 40 PÉS 12,2X2,3X2,9 (COMPXLARGXALTU) | E56: un | F56: 2 | G56: =J56 -> 20412 | H56: =G56*K$2 -> 23188.032 | I56: =ROUND(F56*H56,2) -> 46376.06 | J56: =CPU!I263 -> 20412
A57: 14.47 | B57: Sinapi | C57: 89356 | D57: TUBO PVC, SOLDAVEL, DN 25 MM, AGUA FRIA (NBR-5648) | E57: m | F57: 6 | G57: 25.16 | H57: =G57*K$2 -> 28.58176 | I57: 171.49 | J57: 25.16
A58: 14.48 | B58: Sinapi | C58: 89357 | D58: TUBO PVC, SOLDAVEL, DN 32 MM, AGUA FRIA (NBR-5648) | E58: m | F58: 18 | G58: 33.86 | H58: 38.46496 | I58: 692.37 | J58: 33.86
A59: 14.49 | B59: Sinapi | C59: 89448 | D59: TUBO PVC, SOLDAVEL, DN 40 MM, AGUA FRIA (NBR-5648) | E59: m | F59: 3 | G59: 15.17 | H59: 17.23312 | I59: 51.7 | J59: 15.17
A60: 14.50 | B60: Sinapi | C60: 9838 | D60: TUBO PVC SERIE NORMAL, DN 50 MM, PARA ESGOTO PREDIAL (NBR 5688) | E60: m | F60: 30 | G60: 10.5 | H60: 11.928 | I60: 357.84 | J60: 10.5
A61: 14.51 | B61: Sinapi | C61: 89362 | D61: JOELHO 90 GRAUS, PVC, SOLDÁVEL, DN 25MM, INSTALADO EM RAMAL OU SUB-RAMAL DE ÁGUA - FORNECIMENTO E INSTALAÇÃO. AF_06/2022 | E61: un | F61: 5 | G61: 10.1 | H61: 11.4736 | I61: 57.37 | J61: 10.1
A62: 14.52 | B62: Sinapi | C62: 89367 | D62: JOELHO 90 GRAUS, PVC, SOLDÁVEL, DN 32MM, INSTALADO EM RAMAL OU SUB-RAMAL DE ÁGUA - FORNECIMENTO E INSTALAÇÃO. AF_06/2022 | E62: un | F62: 4 | G62: 13.63 | H62: 15.48368 | I62: 61.93 | J62: 13.63
A63: 14.53 | B63: Sinapi | C63: 89497 | D63: JOELHO 90 GRAUS, PVC, SOLDÁVEL, DN 40MM, INSTALADO EM PRUMADA DE ÁGUA - FORNECIMENTO E INSTALAÇÃO. AF_06/2022 | E63: un | F63: 3 | G63: 12.92 | H63: 14.67712 | I63: 44.03 | J63: 12.92
A64: 14.54 | B64: Sinapi | C64: 3874 | D64: LUVA SOLDAVEL COM BUCHA DE LATÃO DN25X1/2" | E64: un | F64: 5 | G64: 5.52 | H64: 6.27072 | I64: 31.35 | J64: 5.52
A65: 14.55 | B65: Sinapi | C65: 12909 | D65: CAP PVC, SOLDAVEL, DN 50 MM, SERIE NORMAL, PARA ESGOTO PREDIAL | E65: un | F65: 3 | G65: 4.37 | H65: 4.96432 | I65: 14.89 | J65: 4.37
A66: 14.56 | B66: Sinapi | C66: 7136 | D66: TE DE REDUCAO, PVC, SOLDAVEL, 90 GRAUS, 32 MM X 25 MM, PARA AGUA FRIA PREDIAL | E66: un | F66: 5 | G66: 6.16 | H66: 6.99776 | I66: 34.99 | J66: 6.16
A67: 14.57 | B67: Sinapi | C67: 97 | D67: ADAPTADOR PVC SOLDAVEL, COM FLANGE E ANEL DE VEDACAO, 32 MM X 1", PARA CAIXA D'ÁGUA | E67: un | F67: 1 | G67: 17.09 | H67: 19.41424 | I67: 19.41 | J67: 17.09
A68: 14.58 | B68: Sinapi | C68: 98 | D68: ADAPTADOR PVC SOLDAVEL, COM FLANGE E ANEL DE VEDACAO, 40 MM X 1 1/4", PARA CAIXA D'ÁGUA | E68: un | F68: 1 | G68: 25.59 | H68: 29.07024 | I68: 29.07 | J68: 25.59
A69: 14.59 | B69: Sinapi | C69: 11871 | D69: CAIXA D'AGUA EM POLIETILENO 500 LITROS, COM TAMPA | E69: un | F69: 1 | G69: 500.96 | H69: 569.09056 | I69: 569.09 | J69: 500.96
A70: 14.60 | B70: Sinapi | C70: 94795 | D70: TORNEIRA DE BOIA PARA CAIXA D'ÁGUA, ROSCÁVEL, 1/2" - FORNECIMENTO E INSTALAÇÃO. AF_08/2021 | E70: un | F70: 1 | G70: 31.61 | H70: 35.90896 | I70: 35.91 | J70: 31.61
A71: 14.61 | B71: Sinapi | C71: 799 | D71: BUCHA DE REDUCAO PVC, ROSCAVEL, 1" X 1/2" | E71: un | F71: 1 | G71: 3.24 | H71: 3.68064 | I71: 3.68 | J71: 3.24
A72: 14.62 | B72: Sinapi | C72: 11746 | D72: VALVULA DE ESFERA BRUTA EM BRONZE, BITOLA 1” | E72: un | F72: 1 | G72: 115.26 | H72: 130.93536 | I72: 130.94 | J72: 115.26
A73: 14.63 | B73: Sinapi | C73: 4177 | D73: NIPLE DE FERRO GALVANIZADO, COM ROSCA BSP, DE 1/2" | E73: un | F73: 1 | G73: 5.64 | H73: 6.40704 | I73: =ROUND(F73*H73,2) -> 6.41 | J73: 5.64
A74: 14.64 | B74: Sinapi | C74: 3855 | D74: LUVA SOLDAVEL COM BUCHA DE LATÃO DN25X1/2" | E74: un | F74: 1 | G74: 4.76 | H74: 5.40736 | I74: =ROUND(F74*H74,2) -> 5.41 | J74: 4.76
A75: 14.65 | B75: Sinapi | C75: 11674 | D75: registro esfera pvc dn25 soldavel | E75: un | F75: 1 | G75: 13.5 | H75: 15.336 | I75: =ROUND(F75*H75,2) -> 15.34 | J75: 13.5
A76: 14.66 | B76: Sinapi | C76: 35277 | D76: CAIXA DE GORDURA EM PVC, DIAMETRO MINIMO 300 MM, DIAMETRO DE SAIDA 100 MM CAPACIDADE APROXIMADA 18 LITROS, COM TAMPA E CESTO | E76: un | F76: 2 | G76: 339.97 | H76: 386.20592 | I76: =ROUND(F76*H76,2) -> 772.41 | J76: 339.97
A77: 14.67 | B77: Sinapi | C77: 89482 | D77: CAIXA SIFONADA, PVC, DN 100 X 100 X 50 MM, FORNECIDA E INSTALADA EM RAMAIS DE ENCAMINHAMENTO DE ÁGUA PLUVIAL. AF_06/2022 | E77: un | F77: 5 | G77: 38.33 | H77: 43.54288 | I77: 217.71 | J77: 38.33
A78: 14.68 | B78: Sinapi | C78: 89502 | D78: JOELHO 45 GRAUS, PVC, SOLDÁVEL, DN 50MM, INSTALADO EM PRUMADA DE ÁGUA - FORNECIMENTO E INSTALAÇÃO. AF_06/2022 | E78: un | F78: 4 | G78: 16.47 | H78: 18.70992 | I78: 74.84 | J78: 16.47
A79: 14.69 | B79: Sinapi | C79: 89501 | D79: JOELHO 90 GRAUS, PVC, SOLDÁVEL, DN 50MM, INSTALADO EM PRUMADA DE ÁGUA - FORNECIMENTO E INSTALAÇÃO. AF_06/2022 | E79: un | F79: 10 | G79: 14.17 | H79: 16.09712 | I79: 160.97 | J79: 14.17
A80: 14.70 | B80: Sinapi | C80: 103995 | D80: LUVA, PVC, SOLDÁVEL, DN 50MM, INSTALADO EM RAMAL DE DISTRIBUIÇÃO DE ÁGUA - FORNECIMENTO E INSTALAÇÃO. AF_06/2022 | E80: un | F80: 21 | G80: 15.11 | H80: 17.16496 | I80: 360.46 | J80: 15.11
A81: 14.71 | B81: Sinapi | C81: 89567 | D81: JUNÇÃO SIMPLES, PVC, SERIE R, ÁGUA PLUVIAL, DN 100 X 100 MM, JUNTA ELÁSTICA, FORNECIDO E INSTALADO EM RAMAL DE ENCAMINHAMENTO. AF_06/2022 | E81: un | F81: 6 | G81: 76.93 | H81: 87.39248 | I81: 524.35 | J81: 76.93
A82: 14.72 | B82: Sinapi | C82: 12909 | D82: CAP PVC, SOLDAVEL, DN 50 MM, SERIE NORMAL, PARA ESGOTO | E82: un | F82: 1 | G82: 4.37 | H82: 4.96432 | I82: 4.96 | J82: 4.37
A83: 14.73 | B83: Sinapi | C83: 34628 | D83: DISJUNTOR TIPO DIN/IEC, BIPOLAR 63 A | E83: un | F83: 1 | G83: 90.57 | H83: 102.88752 | I83: 102.89 | J83: 90.57
A84: 14.74 | B84: Sinapi | C84: 34616 | D84: DISJUNTOR TIPO DIN/IEC, BIPOLAR DE 6 ATE 32A | E84: un | F84: 6 | G84: 64.22 | H84: 72.95392 | I84: 437.72 | J84: 64.22
A85: 14.75 | B85: ORSE | C85: 07943/ORSE | D85: DISJUNTOR BIPOLAR DR 25A - DISPOSITIvO DIFERENCIAL RESIDUAL, TIPO AC, 30MA | E85: un | F85: 3 | G85: 278.5 | H85: 316.376 | I85: 949.13 | J85: 278.5
A86: 14.76 | B86: Sinapi | C86: 39805 | D86: QUADRO DE DISTRIBUICAO, EM PVC, DE EMBUTIR, COM BARRAMENTO TERRA / NEUTRO, PARA 12 DISJUNTORES NEMA OU 16 DISJUNTORES DIN | E86: un | F86: 1 | G86: 163.69 | H86: 185.95184 | I86: 185.95 | J86: 163.69
A87: 14.77 | B87: Sinapi | C87: 1014 | D87: CABO DE COBRE, FLEXIVEL, CLASSE 4 OU 5, ISOLACAO EM PVC/A, ANTICHAMA BWF-B, 1 CONDUTOR, 450/750 V, SECAO NOMINAL 2,5 MM2 | E87: m | F87: 397.5 | G87: 2.25 | H87: 2.556 | I87: 1016.01 | J87: 2.25
A88: 14.78 | B88: Sinapi | C88: 39471 | D88: DISPOSITIVO DPS CLASSE II, 1 POLO, TENSAO MAXIMA DE 275 V, CORRENTE MAXIMA DE *45* KA (TIPO AC) | E88: un | F88: 2 | G88: 128.97 | H88: 146.50992 | I88: 293.02 | J88: 128.97
A89: 14.79 | B89: Sinapi | C89: 981 | D89: CABO DE COBRE, FLEXIVEL, CLASSE 4 OU 5, ISOLACAO EM PVC/A, ANTICHAMA BWF-B, 1 CONDUTOR, 450/750 V, SECAO NOMINAL 4 MM2 | E89: m | F89: 77.58 | G89: 3.74 | H89: 4.24864 | I89: 329.61 | J89: 3.74
A90: 14.80 | B90: Sinapi | C90: 993 | D90: CABO DE COBRE, FLEXIVEL, CLASSE 4 OU 5, ISOLACAO EM PVC/A, ANTICHAMA BWF-B, COBERTURA PVC-ST1, ANTICHAMA BWF-B, 1 CONDUTOR, 0,6/1 KV, SECAO NOMINAL 1,5 MM2 | E90: m | F90: 396.4 | G90: 1.92 | H90: 2.18112 | I90: 864.6 | J90: 1.92
A91: 14.81 | B91: Sinapi | C91: 38076 | D91: TOMADAS (2 MODULOS) 2P+T 10A, 250V, CONJUNTO MONTADO PARA EMBUTIR 4" X 2" (PLACA + SUPORTE + MODULOS) | E91: un | F91: 11 | G91: 16.87 | H91: 19.16432 | I91: 210.81 | J91: 16.87
A92: 14.82 | B92: Sinapi | C92: 1871 | D92: CAIXA OCTOGONAL DE FUNDO MOVEL, EM PVC, DE 3" X 3", PARA ELETRODUTO FLEXIVEL CORRUGADO | E92: un | F92: 8 | G92: 5.18 | H92: 5.88448 | I92: 47.08 | J92: 5.18
A93: 14.83 | B93: Sinapi | C93: 2689 | D93: ELETRODUTO PVC FLEXIVEL CORRUGADO, COR AMARELA, DE 20 MM | E93: m | F93: 15.53 | G93: 2.77 | H93: 3.14672 | I93: 48.87 | J93: 2.77
A94: 14.84 | B94: Sinapi | C94: 2688 | D94: ELETRODUTO PVC FLEXIVEL CORRUGADO, COR AMARELA, DE 25 MM | E94: m | F94: 71.74 | G94: 3 | H94: 3.408 | I94: 244.49 | J94: 3
A95: 14.85 | B95: Sinapi | C95: 20111 | D95: FITA ISOLANTE ADESIVA ANTICHAMA, USO ATE 750 V, EM ROLO DE 19 MM X 20 M | E95: un | F95: 6 | G95: 8.83 | H95: 10.03088 | I95: 60.19 | J95: 8.83
A96: 14.86 | B96: Sinapi | C96: 1873 | D96: CAIXA DE PASSAGEM, EM PVC, DE 4" X 4", PARA ELETRODUTO FLEXIVEL CORRUGADO | E96: un | F96: 1 | G96: 5.75 | H96: 6.532 | I96: 6.53 | J96: 5.75
A97: 14.87 | B97: Sinapi | C97: 38063 | D97: INTERRUPTOR PARALELO 10A, 250V, CONJUNTO MONTADO PARA EMBUTIR 4" X 2" (PLACA + SUPORTE + MODULO) | E97: un | F97: 4 | G97: 9.08 | H97: 10.31488 | I97: 41.26 | J97: 9.08
A98: 14.88 | B98: Sinapi | C98: 38078 | D98: INTERRUPTOR PARALELO + TOMADA 2P+T 10A, 250V, CONJUNTO MONTADO PARA EMBUTIR 4" X 2" (PLACA + SUPORTE + MODULOS) | E98: un | F98: 1 | G98: 15.58 | H98: 17.69888 | I98: 17.7 | J98: 15.58
A99: 14.89 | B99: Sinapi | C99: 38775 | D99: LUMINARIA TIPO TARTARUGA PARA AREA EXTERNA EM ALUMINIO, COM GRADE, PARA 1 LAMPADA, BASE E27, POTENCIA MAXIMA 40/60 W (NAO INCLUI LAMPADA) | E99: un | F99: 8 | G99: 80.79 | H99: =(G99*K$2) -> 91.77744 | I99: 734.22 | J99: 80.79
A100: 14.90 | B100: Sinapi | C100: 10569 | D100: CAIXA DE PASSAGEM / DERIVACAO / LUZ, OCTOGONAL 4 X4, EM ACO ESMALTADA, COM FUNDO MOVEL SIMPLES (FMS) | E100: un | F100: 6 | G100: 3.47 | H100: 3.94192 | I100: 23.65 | J100: 3.47
A101: 14.91 | B101: Sinapi | C101: 100954 | D101: TRANSPORTE COM CAMINHÃO CARROCERIA COM GUINDAUTO (MUNCK), MOMENTO MÁXIMO DE CARGA 11,7 TM, EM VIA INTERNA (DENTRO DO CANTEIRO - UNIDADE: TXKM). AF_07/2020 | E101: TXKM | F101: 600 | G101: 8.88 | H101: 10.08768 | I101: =ROUND(F101*H101,2) -> 6052.61 | J101: 8.88
A102: 14.92 | B102: Sinapi | C102: 100788 | D102: KIT CAVALETE PARA GÁS - SEM MEDIDOR OU REGULADOR - ENTRADA INDIVIDUAL PRINCIPAL, EM AÇO GALVANIZADO DN 15 E 25 MM (1/2" E 1") - FORNECIMENTO E INSTALAÇÃO | E102: und | F102: 1 | G102: 900.18 | H102: =(G102*$K$2) -> 1022.60448 | I102: =ROUND(F102*H102,2) -> 1022.6 | J102: 900.18
A103: 14.93 | B103: CPU | C103: CPU008 | D103: CHAPA XADREZ EM ALUMINIO PARA PISO e:3mm, INCLUSO REBITE PARA FIXAÇÃO - APENAS MATERIAL | E103: M² | F103: 56.544 | G103: 603.6424 | H103: =G103*$K$2 -> 685.7377664 | I103: =ROUND(F103*H103,2) -> 38774.36 | J103: =CPU!I180 -> 603.6424
A104: 14.94 | B104: CPU | C104: CPU006 | D104: REVESTIMENTO DE PAREDES EM CHAPAS DE AÇO INOXIDÁVEL AISI 304 - APENAS MATERIAL | E104: M² | F104: 160.29 | G104: 350.736 | H104: =G104*$K$2 -> 398.436096 | I104: =ROUND(F104*H104,2) -> 63865.32 | J104: =CPU!I150 -> 350.736

Sheet CPU
A1: MINISTÉRIO DO DESENVOLVIMENTO REGIONAL - MDR
A2: COMPANHIA DE DESENVOLVIMENTO DOS VALES DO SÃO FRANCISCO E DO PARNAÍBA
A3: SEDE
A4: PLANILHA ORÇAMENTÁRIA DE ESTIMATIVA GERAL PARA O ESTADO DE MINAS GERAIS (16ª SR) | H4: Base SINAPI-MG 03-2025 ORSE 02-2025
H5: Data: Maio - 2025
A6: COMPOSIÇÕES DE PREÇO UNITÁRIO
A7: COMPOSIÇÃO DE PREÇO UNITÁRIO | I7: CPU003
A8: DESCRIÇÃO DO SERVIÇO | H8: DATA BASE: | I8: 2025-03-01
A9: ADMINISTRAÇÃO LOCAL | H9: UNIDADE: | I9: mês
A10: MATERIAL
A11: BASE | B11: CÓDIGO | C11: DISCRIMINAÇÃO | D11: UNI | E11: QUANT. | F11: PROD | G11: P.UN.PROD | H11: P.UN.IMPR | I11: P.TOTAL
A12: MERCADO | C12: ALUGUEL | D12: mês | E12: 1 | H12: 800 | I12: =E12*H12 -> 800
A13: MERCADO | C13: TELEFONE E INTERNET | D13: mês | E13: 1 | H13: 99.9 | I13: 99.9
A14: MERCADO | C14: ENERGIA ELÉTRICA | D14: kwh | E14: 200 | H14: 0.53 | I14: 106
A15: MERCADO | C15: ÁGUA E ESGOTO | D15: mês | E15: 1 | H15: 100 | I15: 100
A16: MERCADO | C16: MATERIAL PARA ESCRITÓRIO | D16: mês | E16: 1 | H16: 150 | I16: 150
A17: MERCADO | C17: MATERIAL DE LIMPEZA | D17: mês | E17: 1 | H17: 50 | I17: 50
A18: SUB-TOTAL | I18: =SUM(I12:I17) -> 1305.9
A19: MÃO DE OBRA
A20: BASE | B20: CÓDIGO | C20: DISCRIMINAÇÃO | D20: UNI | E20: QUANT. | H20: P.UNIT. | I20: P.TOTAL
A21: MERCADO | C21: ENGENHEIRO DE OBRA | D21: mês | E21: 1 | H21: 8483 | I21: =E21*H21 -> 8483
A22: MERCADO | C22: MESTRE DE OBRAS | D22: mês | E22: 1 | H22: 4515.12 | I22: =E22*H22 -> 4515.12
A23: MERCADO | C23: AUXILIAR DE ESCRITORIO COM ENCARGOS COMPLEMENTARES | D23: mês | E23: 1 | H23: 1100 | I23: =E23*H23 -> 1100
A24: MERCADO | C24: TÉCNICO EM SEGURANÇA DO TRABALHO | D24: h | E24: 44 | H24: 27.26 | I24: =E24*H24 -> 1199.44
A25: MERCADO | C25: VIGIA | D25: mês | E25: 1 | H25: 1100 | I25: =E25*H25 -> 1100
A26: SUB-TOTAL | I26: =SUM(I21:I25) -> 16397.56
A27: PRODUÇÃO DA EQUIPE | D27: 1 | E27: CUSTO | I27: =I26+I18 -> 17703.46
A28: TOTAL - R$ | I28: =I27/D27 -> 17703.46
A29: BDI % | I29: 1
A30: TOTAL DO SERVIÇO - R$ | I30: =I28*I29 -> 17703.46
A32: COMPOSIÇÃO DE PREÇO UNITÁRIO | I32: CPU001 | J32: XX
A33: DESCRIÇÃO DO SERVIÇO | H33: DATA BASE: | I33: 2025-03-01
A34: EXECUÇÃO DE INSTALAÇÕES HIDROSSANITÁRIAS, EXCLUSIVE EQUIPAMENTOS | H34: UNIDADE: | I34: cj
A35: MÃO DE OBRA
A36: BASE | B36: CÓDIGO | C36: DISCRIMINAÇÃO | D36: UNI | E36: QUANT. | H36: P.UNIT. | I36: P.TOTAL
A37: SINAPI | B37: 88316 | C37: SERVENTE DE OBRAS | D37: h | E37: 80 | H37: 22.64 | I37: =E37*H37 -> 1811.2
A38: SINAPI | B38: 88309 | C38: PEDREIRO | D38: h | E38: 40 | H38: 31.21 | I38: =E38*H38 -> 1248.4
A39: SUB-TOTAL | I39: =SUM(I37:I38) -> 3059.6
A40: PRODUÇÃO DA EQUIPE | D40: 1 | E40: CUSTO | I40: =SUM(I39) -> 3059.6
A41: TOTAL - R$ | I41: =I40/D40 -> 3059.6
A42: BDI % | I42: 1
A43: TOTAL DO SERVIÇO - R$ | I43: =I41*I42 -> 3059.6 | K43: 2758.8
A45: COMPOSIÇÃO DE PREÇO UNITÁRIO | I45: CPU002 | J45: XX
A46: DESCRIÇÃO DO SERVIÇO | H46: DATA BASE: | I46: 2025-03-01
A47: EXECUÇÃO DE INSTALAÇÕES ELÉTRICAS, EXCLUSIVE EQUIPAMENTOS | H47: UNIDADE: | I47: cj
A48: MÃO DE OBRA
A49: BASE | B49: CÓDIGO | C49: DISCRIMINAÇÃO | D49: UNI | E49: QUANT. | H49: P.UNIT. | I49: P.TOTAL
A50: SINAPI | B50: 88247 | C50: AUXILIAR DE ELETRICISTA | D50: h | E50: 80 | H50: 25.52 | I50: =E50*H50 -> 2041.6
A51: SINAPI | B51: 88264 | C51: ELETRICISTA | D51: h | E51: 40 | H51: 31.63 | I51: =E51*H51 -> 1265.2
A52: SUB-TOTAL | I52: =SUM(I50:I51) -> 3306.8
A53: PRODUÇÃO DA EQUIPE | D53: 1 | E53: CUSTO | I53: =SUM(I52) -> 3306.8
A54: TOTAL - R$ | I54: =I53/D53 -> 3306.8
A55: BDI % | I55: 1
A56: TOTAL DO SERVIÇO - R$ | I56: =I54*I55 -> 3306.8 | K56: 2984
A58: COMPOSIÇÃO DE PREÇO UNITÁRIO | I58: CPU003 | J58: XX
A59: DESCRIÇÃO DO SERVIÇO | H59: DATA BASE: | I59: 2025-03-01
A60: CORTE DE CONTAINER PARA ESQUADRIAS | H60: UNIDADE: | I60: m²
A61: MATERIAL
A62: BASE | B62: CÓDIGO | C62: DISCRIMINAÇÃO | D62: UNI | E62: QUANT. | H62: P.UNIT. | I62: P.TOTAL
A63: SINAPI | B63: 11359 | C63: ESMERILHADEIRA ANGULAR ELETRICA, DIAMETRO DO DISCO 7 '' (180 MM), ROTACAO 8500RPM, POTENCIA 2400 W | D63: un | E63: 0.071 | H63: 935 | I63: =E63*H63 -> 66.385
A64: SINAPI | B64: 44531 | C64: DISCO DE CORTE DIAMANTADO SEGMENTADO DIAMETRO DE 180 MM PARA ESMERILHADEIRA 7 " | D64: un | E64: 1 | H64: 84.74 | I64: =E64*H64 -> 84.74
A65: SUB-TOTAL | I65: =SUM(I63:I64) -> 151.125
A66: MÃO DE OBRA
A67: BASE | B67: CÓDIGO | C67: DISCRIMINAÇÃO | D67: UNI | E67: QUANT. | H67: P.UNIT. | I67: P.TOTAL
A68: SINAPI | B68: 88317 | C68: SOLDADOR COM ENCARGOS COMPLEMENTARES | D68: h | E68: 0.5 | H68: 33.52 | I68: =E68*H68 -> 16.76
A69: SINAPI | B69: 88315 | C69: SERRALHEIRO COM ENCARGOS COMPLEMENTARES | D69: h | E69: 0.5 | H69: 30.97 | I69: =E69*H69 -> 15.485
A70: SUB-TOTAL | I70: =SUM(I68:I69) -> 32.245
A71: PRODUÇÃO DA EQUIPE | D71: 1 | E71: CUSTO | I71: =I70+I65 -> 183.37
A72: TOTAL - R$ | I72: =I71/D71 -> 183.37
A73: BDI % | I73: 1
A74: TOTAL DO SERVIÇO - R$ | I74: =I72*I73 -> 183.37 | K74: 176.28
A76: COMPOSIÇÃO DE PREÇO UNITÁRIO | I76: CPU010 | J76: XX
A77: DESCRIÇÃO DO SERVIÇO | H77: DATA BASE: | I77: 2022-03-01
A78: FORNECIMENTO E MONTAGEM DE ESTRUTURA PARA COBERTURA COM ÁREA TOTAL DE 86,27 M² INCLUINDO CALHA E TELHA SANDUÍCHE | H78: UNIDADE: | I78: cj
A79: MÃO DE OBRA
A80: BASE | B80: CÓDIGO | C80: DISCRIMINAÇÃO | D80: UNI | E80: QUANT. | H80: P.UNIT. | I80: P.TOTAL
A81: COTAÇÃO | C81: FABRICAÇÃO E MONTAGEM DE ESTRUTURA METÁLICA PARA COBERTURA DE UNIDADE COM ÁREA TOTAL DE 86,26 M² | D81: cj | E81: 1 | H81: 24877.99 | I81: =E81*H81 -> 24877.99
A82: SUB-TOTAL | I82: =SUM(I81:I81) -> 24877.99
A83: PRODUÇÃO DA EQUIPE | D83: 1 | E83: CUSTO | I83: =SUM(I82) -> 24877.99
A84: TOTAL - R$ | I84: =I83/D83 -> 24877.99
A85: BDI % | I85: 1
A86: TOTAL DO SERVIÇO - R$ | I86: =I84*I85 -> 24877.99
A88: COMPOSIÇÃO DE PREÇO UNITÁRIO | I88: CPU011 | J88: XX
A89: DESCRIÇÃO DO SERVIÇO | H89: DATA BASE: | I89: 2022-03-01
A90: FORNECIMENTO E MONTAGEM DE ESTRUTURA PARA COBERTURA COM ÁREA TOTAL DE 137,9 M² INCLUINDO CALHA E TELHA SANDUÍCHE | H90: UNIDADE: | I90: cj
A91: MÃO DE OBRA
A92: BASE | B92: CÓDIGO | C92: DISCRIMINAÇÃO | D92: UNI | E92: QUANT. | H92: P.UNIT. | I92: P.TOTAL
A93: COTAÇÃO | C93: FABRICAÇÃO E MONTAGEM DE ESTRUTURA METÁLICA PARA COBERTURA DE UNIDADE COM ÁREA TOTAL DE 137,9 M² | D93: cj | E93: 1 | H93: 39043.9 | I93: =E93*H93 -> 39043.9
A94: SUB-TOTAL | I94: =SUM(I93:I93) -> 39043.9
A95: PRODUÇÃO DA EQUIPE | D95: 1 | E95: CUSTO | I95: =SUM(I94) -> 39043.9
A96: TOTAL - R$ | I96: =I95/D95 -> 39043.9
A97: BDI % | I97: 1
A98: TOTAL DO SERVIÇO - R$ | I98: =I96*I97 -> 39043.9
A100: COMPOSIÇÃO DE PREÇO UNITÁRIO | I100: CPU004 | J100: XX
A101: DESCRIÇÃO DO SERVIÇO | H101: DATA BASE: | I101: 2025-03-01
A102: MODIFICAÇÕES NO CONTAINER COM CORTE POR ESMERILHADEIRA | H102: UNIDADE: | I102: m
A103: MATERIAL
A104: BASE | B104: CÓDIGO | C104: DISCRIMINAÇÃO | D104: UNI | E104: QUANT. | H104: P.UNIT. | I104: P.TOTAL
A105: SINAPI | B105: 11359 | C105: ESMERILHADEIRA ANGULAR ELETRICA, DIAMETRO DO DISCO 7 '' (180 MM), ROTACAO 8500RPM, POTENCIA 2400 W | D105: un | E105: 0.04 | H105: 935 | I105: =E105*H105 -> 37.4
A106: SINAPI | B106: 44531 | C106: DISCO DE CORTE DIAMANTADO SEGMENTADO DIAMETRO DE 180 MM PARA ESMERILHADEIRA 7 " | D106: un | E106: 0.5 | H106: 84.74 | I106: =E106*H106 -> 42.37
A107: SUB-TOTAL | I107: =SUM(I105:I106) -> 79.77
A108: MÃO DE OBRA
A109: BASE | B109: CÓDIGO | C109: DISCRIMINAÇÃO | D109: UNI | E109: QUANT. | H109: P.UNIT. | I109: P.TOTAL
A110: SINAPI | B110: 88317 | C110: SOLDADOR COM ENCARGOS COMPLEMENTARES | D110: h | E110: 0.25 | H110: 33.52 | I110: =E110*H110 -> 8.38
A111: SINAPI | B111: 88315 | C111: SERRALHEIRO COM ENCARGOS COMPLEMENTARES | D111: h | E111: 0.25 | H111: 30.97 | I111: =E111*H111 -> 7.7425
A112: SUB-TOTAL | I112: =SUM(I110:I111) -> 16.1225
A113: PRODUÇÃO DA EQUIPE | D113: 1 | E113: CUSTO | I113: =I112+I107 -> 95.8925
A114: TOTAL - R$ | I114: =I113/D113 -> 95.8925
A115: BDI % | I115: 1
A116: TOTAL DO SERVIÇO - R$ | I116: =I114*I115 -> 95.8925 | K116: 91.87
A118: COMPOSIÇÃO DE PREÇO UNITÁRIO | I118: CPU005 | J118: XX
A119: DESCRIÇÃO DO SERVIÇO | H119: DATA BASE: | I119: 2025-03-01
A120: MODIFICAÇÕES NO CONTAINER UNIÃO ATRAVÉS DO PROCESSO DE SOLDAGEM, INCLUSO IÇAMENTO DO CONTAINER | H120: UNIDADE: | I120: m
A121: EQUIPAMENTO
A122: BASE | B122: CÓDIGO | C122: DISCRIMINAÇÃO | D122: UNI | E122: QUANT. | H122: P.UNIT. | I122: P.TOTAL
A123: SINAPI | B123: 92716 | C123: APARELHO PARA CORTE E SOLDA OXI-ACETILENO SOBRE RODAS, INCLUSIVE CILINDROS E MAÇARICOS | D123: chp | E123: 0.1846 | H123: 112.08 | I123: =E123*H123 -> 20.689968
A124: SINAPI | B124: 92715 | C124: APARELHO PARA CORTE E SOLDA OXI-ACETILENO SOBRE RODAS, INCLUSIVE CILINDROS E MAÇARICOS - MATERIAIS NA OPERAÇÃO. | D124: h | E124: 1.56 | H124: 111.61 | I124: =E124*H124 -> 174.1116
A125: SINAPI | B125: 5928 | C125: GUINDAUTO HIDRÁULICO, CAPACIDADE MÁXIMA DE CARGA 6200 KG, MOMENTO MÁXIMO DE CARGA 11,7 TM, ALCANCE MÁXIMO HORIZONTAL 9,70 M, INCLUSIVE CAMINHÃO TOCO PBT 16.000 KG, POTÊNCIA DE 189 CV | D125: chp | E125: 0.2388 | H125: 286.85 | I125: =E125*H125 -> 68.49978
A126: SUB-TOTAL | I126: =SUM(I123:I125) -> 263.301348
A127: SERVIÇOS - COMPOSIÇÕES AUXILIARES
A128: BASE | B128: CÓDIGO | C128: DISCRIMINAÇÃO | D128: UNI | E128: QUANT. | H128: P.UNIT. | I128: P.TOTAL
A129: SINAPI | B129: 98746 | C129: SOLDA DE TOPO EM CHAPA/PERFIL/TUBO DE AÇO CHANFRADO, ESPESSURA=1/4''. | D129: m | E129: 1 | H129: 90.92 | I129: =E129*H129 -> 90.92
A130: SUB-TOTAL | I130: =SUM(I129:I129) -> 90.92
A131: MÃO DE OBRA
A132: BASE | B132: CÓDIGO | C132: DISCRIMINAÇÃO | D132: UNI | E132: QUANT. | H132: P.UNIT. | I132: P.TOTAL
A133: SINAPI | B133: 88317 | C133: SOLDADOR COM ENCARGOS COMPLEMENTARES | D133: h | E133: 1.56 | H133: 33.52 | I133: =E133*H133 -> 52.2912
A134: SUB-TOTAL | I134: =SUM(I133:I133) -> 52.2912
A135: PRODUÇÃO DA EQUIPE | D135: 1 | E135: CUSTO | I135: =I134+I126+I130 -> 406.512548
A136: TOTAL - R$ | I136: =I135/D135 -> 406.512548
A137: BDI % | I137: 1
A138: TOTAL DO SERVIÇO - R$ | I138: =I136*I137 -> 406.512548 | K138: 290
A140: COMPOSIÇÃO DE PREÇO UNITÁRIO | I140: CPU006
A141: DESCRIÇÃO DO SERVIÇO | H141: DATA BASE: | I141: 2025-03-01
A142: REVESTIMENTO DE PAREDES EM CHAPAS DE AÇO INOXIDÁVEL AISI 304 - CONSIDERANDO CHAPA DE 1,2mm | H142: UNIDADE: | I142: M²
A143: APENAS MATERIAL
A144: BASE | B144: CÓDIGO | C144: DISCRIMINAÇÃO | D144: UNI | E144: QUANT. | H144: P.UNIT. | I144: P.TOTAL
A145: COTAÇÃO | C145: CHAPAS DE AÇO INOXIDÁVEL AISI 304 | D145: KG | E145: 9.6 | H145: 34 | I145: =E145*H145 -> 326.4
A146: SINAPI | B146: 131 | C146: ADESIVO ESTRUTURAL A BASE DE RESINA EPOXI, BICOMPONENTE, PASTOSO (TIXOTROPICO) | D146: KG | E146: 0.6 | H146: 40.56 | I146: =E146*H146 -> 24.336
A147: SUB-TOTAL | I147: =SUM(I145:I146) -> 350.736
A148: TOTAL - R$ | I148: =I147 -> 350.736
A149: BDI % | I149: 1
A150: TOTAL DO SERVIÇO - R$ | I150: =I148*I149 -> 350.736
A152: COMPOSIÇÃO DE PREÇO UNITÁRIO | I152: CPU007
A153: DESCRIÇÃO DO SERVIÇO | H153: DATA BASE: | I153: 2025-03-01
A154: REVESTIMENTO CERÂMICO PARA PISO COM PLACAS TIPO ESMALTADA DE DIMENSÕES 45x45cm COM ARGAMASSA AC III | H154: UNIDADE: | I154: m²
A155: MATERIAL
A156: BASE | B156: CÓDIGO | C156: DISCRIMINAÇÃO | D156: UNI | E156: QUANT. | H156: P.UNIT. | I156: P.TOTAL
A157: Sinapi | B157: 37596 | C157: ARGAMASSA COLANTE TIPO AC III E | D157: KG | E157: 9.1325 | H157: 2.61 | I157: =E157*H157 -> 23.835825
A158: Sinapi | B158: 1287 | C158: PISO EM CERAMICA ESMALTADA EXTRA, COR LISA, PEI MAIOR OU IGUAL A 4, FORMATO MENOR OU IGUAL A 5 CM2 | D158: m² | E158: 1.1136 | H158: 31.95 | I158: =E158*H158 -> 35.57952
A159: Sinapi | B159: 34357 | C159: REJUNTE CIMENTÍCIO, QUALQUER COR | D159: KG | E159: 0.188 | H159: 4.34 | I159: =E159*H159 -> 0.81592
A160: SUB-TOTAL | I160: =SUM(I157:I159) -> 60.231265
A161: MÃO DE OBRA
A162: BASE | B162: CÓDIGO | C162: DISCRIMINAÇÃO | D162: UNI | E162: QUANT. | H162: P.UNIT. | I162: P.TOTAL
A163: SINAPI | B163: 88317 | C163: AZULEJISTA OU LADRILHISTA COM ENCARGOS COMPLEMENTARES | D163: h | E163: 0.8064 | H163: 33.52 | I163: =E163*H163 -> 27.030528 | J163: REV-005 02/07/2024
A164: SINAPI | B164: 88316 | C164: SERVENTE COM ENCARGOS COMPLEMENTARES | D164: h | E164: 0.2068 | H164: 22.64 | I164: =E164*H164 -> 4.681952
A165: SUB-TOTAL | I165: =SUM(I163:I164) -> 31.71248
A166: PRODUÇÃO DA EQUIPE | D166: 1 | E166: CUSTO | I166: =I165+I160 -> 91.943745
A167: TOTAL - R$ | I167: =I166/D166 -> 91.943745
A168: BDI % | I168: 1
A169: TOTAL DO SERVIÇO - R$ | I169: =I167*I168 -> 91.943745
A171: COMPOSIÇÃO DE PREÇO UNITÁRIO | I171: CPU008
A172: DESCRIÇÃO DO SERVIÇO | H172: DATA BASE: | I172: 2025-03-01
A173: CHAPA XADREZ EM ALUMINIO PARA PISO e:3mm, INCLUSO REBITE PARA FIXAÇÃO - MATERIAL | H173: UNIDADE: | I173: m
A174: MATERIAL
A175: BASE | B175: CÓDIGO | C175: DISCRIMINAÇÃO | D175: UNI | E175: QUANT. | H175: P.UNIT. | I175: P.TOTAL
A176: SINAPI | B176: 1337 | C176: CHAPA DE ACO XADREZ PARA PISOS, E = 1/4" (6,30 MM) 54,53 KG/M2 | D176: kg | E176: 38 | H176: 11.15 | I176: =E176*H176 -> 423.7
A177: SINAPI | B177: 10997 | C177: ELETRODO REVESTIDO AWS - E7018, DIAMETRO IGUAL A 4,00 MM | D177: Kg | E177: 2.88 | H177: 62.48 | I177: =E177*H177 -> 179.9424
A178: SUB-TOTAL | I178: =SUM(I176:I177) -> 603.6424
A179: BDI % | I179: 1 | J179: REV-005 04/07/2024
A180: TOTAL DO SERVIÇO - R$ | I180: =I178 -> 603.6424
A183: COMPOSIÇÃO DE PREÇO UNITÁRIO | I183: CPU009
A184: DESCRIÇÃO DO SERVIÇO | H184: DATA BASE: | I184: 2025-03-01
A185: CHAPA XADREZ EM ALUMINIO PARA PISO e:3mm, INCLUSO REBITE PARA FIXAÇÃO - MÃO DE OBRA | H185: UNIDADE: | I185: m
A186: MÃO DE OBRA
A187: BASE | B187: CÓDIGO | C187: DISCRIMINAÇÃO | D187: UNI | E187: QUANT. | H187: P.UNIT. | I187: P.TOTAL
A188: SINAPI | B188: 88315 | C188: SERRALHEIRO COM ENCARGOS | D188: H | E188: 8.99 | H188: 30.97 | I188: =E188*H188 -> 278.4203
A189: SINAPI | B189: 88316 | C189: SERVENTE COM ENCARGOS COMPLEMENTARES | D189: H | E189: 6.42 | H189: 22.64 | I189: =E189*H189 -> 145.3488
A190: SUB-TOTAL | I190: =SUM(I188:I189) -> 423.7691
A191: PRODUÇÃO DA EQUIPE | D191: 1 | E191: CUSTO | I191: =I190 -> 423.7691
A192: TOTAL - R$ | I192: =I191/D191 -> 423.7691
A193: TOTAL DO SERVIÇO - R$ | I193: =I191 -> 423.7691
A195: COMPOSIÇÃO DE PREÇO UNITÁRIO | I195: CPU0010
A196: DESCRIÇÃO DO SERVIÇO | H196: DATA BASE: | I196: 2025-03-01
A197: REVESTIMENTO DE PAREDES EM CHAPAS DE AÇO INOXIDÁVEL AISI 304 - CONSIDERANDO CHAPA DE 1,2mm | H197: UNIDADE: | I197: M²
A198: APENAS MÃO DE OBRA
A199: BASE | B199: CÓDIGO | C199: DISCRIMINAÇÃO | D199: UNI | E199: QUANT. | H199: P.UNIT. | I199: P.TOTAL
A200: SINAPI | B200: 88317 | C200: SOLDADOR COM ENCARGOS COMPLEMENTARES | D200: h | E200: 0.8 | H200: 30.67 | I200: =E200*H200 -> 24.536
A201: SINAPI | B201: 88315 | C201: SERRALHEIRO COM ENCARGOS COMPLEMENTARES | D201: h | E201: 0.8 | H201: 27.91 | I201: =E201*H201 -> 22.328
A202: SUB-TOTAL | I202: =SUM(I200:I201) -> 46.864
A203: PRODUÇÃO DA EQUIPE | D203: 1 | E203: CUSTO | I203: =I202 -> 46.864
A204: TOTAL - R$ | I204: =I203/D203 -> 46.864
A205: BDI % | I205: 1
A206: TOTAL DO SERVIÇO - R$ | I206: =I204*I205 -> 46.864
A208: COMPOSIÇÃO DE PREÇO UNITÁRIO | I208: CPU011
A209: DESCRIÇÃO DO SERVIÇO | H209: DATA BASE: | I209: 2025-03-01
A210: GUARDA-CORPO DE AÇO CARBONO, MONTANTES TUBULARES DE 1.1/2" ESPAÇADOS EM 0,75M, ALTURA APROXIMADA DE 0,90M, PREPARADO COM FUNDO E TINTA EPÓXI NA COR AMARELA | H210: UNIDADE: | I210: m
A211: MATERIAL
A212: BASE | B212: CÓDIGO | C212: DISCRIMINAÇÃO | D212: UNI | E212: QUANT. | H212: P.UNIT. | I212: P.TOTAL
A213: SINAPI | B213: 1332 | C213: CHAPA DE ACO GROSSA, ASTM A36, E = 3/8 " (9,53 MM) 74,69 KG/M2 | D213: KG | E213: 0,8960000 | H213: 9.92 | I213: =E213*H213 -> 8.88832
A214: SINAPI | B214: 11002 | C214: ELETRODO REVESTIDO AWS - E6013, DIAMETRO IGUAL A 2,50 MM | D214: KG | E214: 0,0650000 | H214: 60 | I214: 3.9
... 66 more rows
